{"text_format":"1","workbook":"xlsx","n_sheets":5,"sheets":["Таблица","Доп","Дополняемый блок","История согласования","Лист1"],"not_rendered":{"charts":0,"images":0,"macros":1,"external_links":0,"defined_names":11,"comments":0,"pivot_tables":0},"unopened":[],"bounds":{"document_bytes":16777216,"sheet_cells":100000,"rows_first":2000,"rows_last":500,"rows_between":2000,"halvings":0,"cell_chars":16384,"cell_head_chars":4096},"cells_cut":0,"cells_raw":0,"read":"whole","date_system":"1900"}

{"sheet":"Таблица","index":0,"n_rows":9,"n_cols":20,"rows_kept":9,"cut":false,"hidden":false,"merged":[[4,13,4,16],[0,0,0,12],[1,0,1,12],[2,0,2,12],[4,0,4,5],[4,6,4,9],[4,10,4,11]]}
["РЕЕСТР"]
["заявок на закупку товаров, работ, услуг"]
["в 2015 году (по г. Москве)"]
[]
["Реквизиты заявки на закупку",null,null,null,null,null,"Аналитическая информация по заявке",null,null,null,"Информация о потребителе",null,null,"Реквизиты договора"]
["№ заявки","Дата поступления заявки","Полное наименование заявки","Сумма заявки, рублей","Ответственный исполнитель","Контакт. телефон","КОСГУ","Источник финансирования","Группа расходов","Контрагент","Наименование потребителя","Адрес потребителя","Мероприятие\n(если имеется)","№ договора","Дата заключения договора","Срок действия договора","Сумма договора,\nрублей","Статус","Дополнительно","Комплект документов"]
[null,"2015-01-15","Стирка прямого белья в Санатории-профилактории",10000,null,null,225,"внебюджет","стирка белья","ООО Чистый круг","Санаторий-профилакторий для студентов и сотрудников",null,null,"10-02/14","2015-02-10","2015-12-31",10000,{"$f":"IFERROR(IF(MOD(MATCH(MAX(Таблица3[[#This Row],[Тип документа]:[Решение11]]),Таблица3[[#This Row],[Тип документа]:[Решение11]],1)+2,5)=0,INDIRECT(\"'История согласования'!R\"&ROW()&\"C\"&MATCH(MAX(Таблица3[[#This Row],[Тип документа]:[Решение11]]),Таблица3[[#This Row],[Тип документа]:[Решение11]],1)+1,FALSE)&\" \"&INDIRECT(\"'История согласования'!R\"&ROW()&\"C\"&MATCH(MAX(Таблица3[[#This Row],[Тип документа]:[Решение11]]),Таблица3[[#This Row],[Тип документа]:[Решение11]],1)+5,FALSE)&\" \"&INDIRECT(\"'История согласования'!R\"&ROW()&\"C\"&MATCH(MAX(Таблица3[[#This Row],[Тип документа]:[Решение11]]),Таблица3[[#This Row],[Тип документа]:[Решение11]],1)+2,FALSE),INDIRECT(\"'История согласования'!R\"&ROW()&\"C\"&MATCH(MAX(Таблица3[[#This Row],[Тип документа]:[Решение11]]),Таблица3[[#This Row],[Тип документа]:[Решение11]],1),FALSE)&\" \"&INDIRECT(\"'История согласования'!R\"&ROW()&\"C\"&MATCH(MAX(Таблица3[[#This Row],[Тип документа]:[Решение11]]),Таблица3[[#This Row],[Тип документа]:[Решение11]],1)+4,FALSE)&\" \"&INDIRECT(\"'История согласования'!R\"&ROW()&\"C\"&MATCH(MAX(Таблица3[[#This Row],[Тип документа]:[Решение11]]),Таблица3[[#This Row],[Тип документа]:[Решение11]],1)+1,FALSE)),\"\")","v":"Заявка согласов. Кучина"}]
[null,"2015-01-15","Услуги по экспресс-доставке отправлений специальной связи, включая прием, обработку, доставку (вручение) экспресс-отправлений.",50000,null,null,221,"внебюджет","прочие услуги связи","ФГУП Главный центр специальной связи","Управление делами и кадров",null,null,"1035-14/15","2015-05-21","2015-12-31",50000,{"$f":"IFERROR(IF(MOD(MATCH(MAX(Таблица3[[#This Row],[Тип документа]:[Решение11]]),Таблица3[[#This Row],[Тип документа]:[Решение11]],1)+2,5)=0,INDIRECT(\"'История согласования'!R\"&ROW()&\"C\"&MATCH(MAX(Таблица3[[#This Row],[Тип документа]:[Решение11]]),Таблица3[[#This Row],[Тип документа]:[Решение11]],1)+1,FALSE)&\" \"&INDIRECT(\"'История согласования'!R\"&ROW()&\"C\"&MATCH(MAX(Таблица3[[#This Row],[Тип документа]:[Решение11]]),Таблица3[[#This Row],[Тип документа]:[Решение11]],1)+5,FALSE)&\" \"&INDIRECT(\"'История согласования'!R\"&ROW()&\"C\"&MATCH(MAX(Таблица3[[#This Row],[Тип документа]:[Решение11]]),Таблица3[[#This Row],[Тип документа]:[Решение11]],1)+2,FALSE),INDIRECT(\"'История согласования'!R\"&ROW()&\"C\"&MATCH(MAX(Таблица3[[#This Row],[Тип документа]:[Решение11]]),Таблица3[[#This Row],[Тип документа]:[Решение11]],1),FALSE)&\" \"&INDIRECT(\"'История согласования'!R\"&ROW()&\"C\"&MATCH(MAX(Таблица3[[#This Row],[Тип документа]:[Решение11]]),Таблица3[[#This Row],[Тип документа]:[Решение11]],1)+4,FALSE)&\" \"&INDIRECT(\"'История согласования'!R\"&ROW()&\"C\"&MATCH(MAX(Таблица3[[#This Row],[Тип документа]:[Решение11]]),Таблица3[[#This Row],[Тип документа]:[Решение11]],1)+1,FALSE)),\"\")","v":"Заявка согласов. Кучина"}]
[null,"2015-01-16","Товары для обеспечения РГСУ: бумага формата А4",100000,null,null,340,"внебюджет","бумага","ООО Алком-М","Хозяйственное управление",null,null,"15-03/16","2015-06-30","2016-03-01",100000,{"$f":"IFERROR(IF(MOD(MATCH(MAX(Таблица3[[#This Row],[Тип документа]:[Решение11]]),Таблица3[[#This Row],[Тип документа]:[Решение11]],1)+2,5)=0,INDIRECT(\"'История согласования'!R\"&ROW()&\"C\"&MATCH(MAX(Таблица3[[#This Row],[Тип документа]:[Решение11]]),Таблица3[[#This Row],[Тип документа]:[Решение11]],1)+1,FALSE)&\" \"&INDIRECT(\"'История согласования'!R\"&ROW()&\"C\"&MATCH(MAX(Таблица3[[#This Row],[Тип документа]:[Решение11]]),Таблица3[[#This Row],[Тип документа]:[Решение11]],1)+5,FALSE)&\" \"&INDIRECT(\"'История согласования'!R\"&ROW()&\"C\"&MATCH(MAX(Таблица3[[#This Row],[Тип документа]:[Решение11]]),Таблица3[[#This Row],[Тип документа]:[Решение11]],1)+2,FALSE),INDIRECT(\"'История согласования'!R\"&ROW()&\"C\"&MATCH(MAX(Таблица3[[#This Row],[Тип документа]:[Решение11]]),Таблица3[[#This Row],[Тип документа]:[Решение11]],1),FALSE)&\" \"&INDIRECT(\"'История согласования'!R\"&ROW()&\"C\"&MATCH(MAX(Таблица3[[#This Row],[Тип документа]:[Решение11]]),Таблица3[[#This Row],[Тип документа]:[Решение11]],1)+4,FALSE)&\" \"&INDIRECT(\"'История согласования'!R\"&ROW()&\"C\"&MATCH(MAX(Таблица3[[#This Row],[Тип документа]:[Решение11]]),Таблица3[[#This Row],[Тип документа]:[Решение11]],1)+1,FALSE)),\"\")","v":"Заявка  Рабочая комиссия"}]

{"sheet":"Доп","index":1,"n_rows":90,"n_cols":10,"rows_kept":90,"cut":false,"hidden":true,"merged":[]}
[null,221,222,223,224,225,226,290,310,340]
[null,{"$f":"IFERROR(LOOKUP(,-1/ISERROR(MATCH(Предмет_договора,B$1:B1,))/(КОСГУ=B$1),Предмет_договора),)","v":"интернет"},{"$f":"IFERROR(LOOKUP(,-1/ISERROR(MATCH(Предмет_договора,C$1:C1,))/(КОСГУ=C$1),Предмет_договора),)","v":"автотранспортное обслуживание"},{"$f":"IFERROR(LOOKUP(,-1/ISERROR(MATCH(Предмет_договора,D$1:D1,))/(КОСГУ=D$1),Предмет_договора),)","v":"горячее водоснабжение"},{"$f":"IFERROR(LOOKUP(,-1/ISERROR(MATCH(Предмет_договора,E$1:E1,))/(КОСГУ=E$1),Предмет_договора),)","v":"временное пользование движимым имуществом"},{"$f":"IFERROR(LOOKUP(,-1/ISERROR(MATCH(Предмет_договора,F$1:F1,))/(КОСГУ=F$1),Предмет_договора),)","v":"вывоз медотходов"},{"$f":"IFERROR(LOOKUP(,-1/ISERROR(MATCH(Предмет_договора,G$1:G1,))/(КОСГУ=G$1),Предмет_договора),)","v":"автоматическая пожарная сигнализация, ЧС"},{"$f":"IFERROR(LOOKUP(,-1/ISERROR(MATCH(Предмет_договора,H$1:H1,))/(КОСГУ=H$1),Предмет_договора),)","v":"взносы"},{"$f":"IFERROR(LOOKUP(,-1/ISERROR(MATCH(Предмет_договора,I$1:I1,))/(КОСГУ=I$1),Предмет_договора),)","v":"акустическое оборудование"},{"$f":"IFERROR(LOOKUP(,-1/ISERROR(MATCH(Предмет_договора,J$1:J1,))/(КОСГУ=J$1),Предмет_договора),)","v":"автозапчасти"}]
[null,{"$f":"IFERROR(LOOKUP(,-1/ISERROR(MATCH(Предмет_договора,B$1:B2,))/(КОСГУ=B$1),Предмет_договора),)","v":"мобильная связь"},{"$f":"IFERROR(LOOKUP(,-1/ISERROR(MATCH(Предмет_договора,C$1:C2,))/(КОСГУ=C$1),Предмет_договора),)","v":"билеты"},{"$f":"IFERROR(LOOKUP(,-1/ISERROR(MATCH(Предмет_договора,D$1:D2,))/(КОСГУ=D$1),Предмет_договора),)","v":"поставка газа"},{"$f":"IFERROR(LOOKUP(,-1/ISERROR(MATCH(Предмет_договора,E$1:E2,))/(КОСГУ=E$1),Предмет_договора),)","v":"временное пользование недвижимым  имуществом"},{"$f":"IFERROR(LOOKUP(,-1/ISERROR(MATCH(Предмет_договора,F$1:F2,))/(КОСГУ=F$1),Предмет_договора),)","v":"вывоз ТБО"},{"$f":"IFERROR(LOOKUP(,-1/ISERROR(MATCH(Предмет_договора,G$1:G2,))/(КОСГУ=G$1),Предмет_договора),)","v":"бланки строгой отчетности"},{"$f":"IFERROR(LOOKUP(,-1/ISERROR(MATCH(Предмет_договора,H$1:H2,))/(КОСГУ=H$1),Предмет_договора),)","v":"логотипированная продукция"},{"$f":"IFERROR(LOOKUP(,-1/ISERROR(MATCH(Предмет_договора,I$1:I2,))/(КОСГУ=I$1),Предмет_договора),)","v":"бытовое оборудование"},{"$f":"IFERROR(LOOKUP(,-1/ISERROR(MATCH(Предмет_договора,J$1:J2,))/(КОСГУ=J$1),Предмет_договора),)","v":"бланочная продукция"}]
[null,{"$f":"IFERROR(LOOKUP(,-1/ISERROR(MATCH(Предмет_договора,B$1:B3,))/(КОСГУ=B$1),Предмет_договора),)","v":"прочие услуги связи"},{"$f":"IFERROR(LOOKUP(,-1/ISERROR(MATCH(Предмет_договора,C$1:C3,))/(КОСГУ=C$1),Предмет_договора),)","v":"доставка"},{"$f":"IFERROR(LOOKUP(,-1/ISERROR(MATCH(Предмет_договора,D$1:D3,))/(КОСГУ=D$1),Предмет_договора),)","v":"прием сточных вод"},{"$f":"IFERROR(LOOKUP(,-1/ISERROR(MATCH(Предмет_договора,E$1:E3,))/(КОСГУ=E$1),Предмет_договора),)","v":0},{"$f":"IFERROR(LOOKUP(,-1/ISERROR(MATCH(Предмет_договора,F$1:F3,))/(КОСГУ=F$1),Предмет_договора),)","v":"гос поверка, паспортизация средств измерений"},{"$f":"IFERROR(LOOKUP(,-1/ISERROR(MATCH(Предмет_договора,G$1:G3,))/(КОСГУ=G$1),Предмет_договора),)","v":"гардеробное обслуживание"},{"$f":"IFERROR(LOOKUP(,-1/ISERROR(MATCH(Предмет_договора,H$1:H3,))/(КОСГУ=H$1),Предмет_договора),)","v":"подарочная и сувенирная продукция"},{"$f":"IFERROR(LOOKUP(,-1/ISERROR(MATCH(Предмет_договора,I$1:I3,))/(КОСГУ=I$1),Предмет_договора),)","v":"компьютерная техника, периферия"},{"$f":"IFERROR(LOOKUP(,-1/ISERROR(MATCH(Предмет_договора,J$1:J3,))/(КОСГУ=J$1),Предмет_договора),)","v":"бумага"}]
[null,{"$f":"IFERROR(LOOKUP(,-1/ISERROR(MATCH(Предмет_договора,B$1:B4,))/(КОСГУ=B$1),Предмет_договора),)","v":"телефонная связь"},{"$f":"IFERROR(LOOKUP(,-1/ISERROR(MATCH(Предмет_договора,C$1:C4,))/(КОСГУ=C$1),Предмет_договора),)","v":0},{"$f":"IFERROR(LOOKUP(,-1/ISERROR(MATCH(Предмет_договора,D$1:D4,))/(КОСГУ=D$1),Предмет_договора),)","v":"теплоэнергия"},{"$f":"IFERROR(LOOKUP(,-1/ISERROR(MATCH(Предмет_договора,E$1:E4,))/(КОСГУ=E$1),Предмет_договора),)","v":0},{"$f":"IFERROR(LOOKUP(,-1/ISERROR(MATCH(Предмет_договора,F$1:F4,))/(КОСГУ=F$1),Предмет_договора),)","v":"дезинфекция, дезинсекция, дератизация, демеркуризация"},{"$f":"IFERROR(LOOKUP(,-1/ISERROR(MATCH(Предмет_договора,G$1:G4,))/(КОСГУ=G$1),Предмет_договора),)","v":"геодезические работы"},{"$f":"IFERROR(LOOKUP(,-1/ISERROR(MATCH(Предмет_договора,H$1:H4,))/(КОСГУ=H$1),Предмет_договора),)","v":"услуги по составлению букетов"},{"$f":"IFERROR(LOOKUP(,-1/ISERROR(MATCH(Предмет_договора,I$1:I4,))/(КОСГУ=I$1),Предмет_договора),)","v":"кондиционеры, холодильники"},{"$f":"IFERROR(LOOKUP(,-1/ISERROR(MATCH(Предмет_договора,J$1:J4,))/(КОСГУ=J$1),Предмет_договора),)","v":"запчасти для прочего оборудования"}]
[null,{"$f":"IFERROR(LOOKUP(,-1/ISERROR(MATCH(Предмет_договора,B$1:B5,))/(КОСГУ=B$1),Предмет_договора),)","v":0},{"$f":"IFERROR(LOOKUP(,-1/ISERROR(MATCH(Предмет_договора,C$1:C5,))/(КОСГУ=C$1),Предмет_договора),)","v":0},{"$f":"IFERROR(LOOKUP(,-1/ISERROR(MATCH(Предмет_договора,D$1:D5,))/(КОСГУ=D$1),Предмет_договора),)","v":"транспортировка газа"},{"$f":"IFERROR(LOOKUP(,-1/ISERROR(MATCH(Предмет_договора,E$1:E5,))/(КОСГУ=E$1),Предмет_договора),)","v":0},{"$f":"IFERROR(LOOKUP(,-1/ISERROR(MATCH(Предмет_договора,F$1:F5,))/(КОСГУ=F$1),Предмет_договора),)","v":"заправка картриджей"},{"$f":"IFERROR(LOOKUP(,-1/ISERROR(MATCH(Предмет_договора,G$1:G5,))/(КОСГУ=G$1),Предмет_договора),)","v":"демонтажные работы"},{"$f":"IFERROR(LOOKUP(,-1/ISERROR(MATCH(Предмет_договора,H$1:H5,))/(КОСГУ=H$1),Предмет_договора),)","v":"цветы"},{"$f":"IFERROR(LOOKUP(,-1/ISERROR(MATCH(Предмет_договора,I$1:I5,))/(КОСГУ=I$1),Предмет_договора),)","v":"мебель"},{"$f":"IFERROR(LOOKUP(,-1/ISERROR(MATCH(Предмет_договора,J$1:J5,))/(КОСГУ=J$1),Предмет_договора),)","v":"зачетки, студ.билеты"}]
[null,{"$f":"IFERROR(LOOKUP(,-1/ISERROR(MATCH(Предмет_договора,B$1:B6,))/(КОСГУ=B$1),Предмет_договора),)","v":0},{"$f":"IFERROR(LOOKUP(,-1/ISERROR(MATCH(Предмет_договора,C$1:C6,))/(КОСГУ=C$1),Предмет_договора),)","v":0},{"$f":"IFERROR(LOOKUP(,-1/ISERROR(MATCH(Предмет_договора,D$1:D6,))/(КОСГУ=D$1),Предмет_договора),)","v":"холодное водоснабжение"},{"$f":"IFERROR(LOOKUP(,-1/ISERROR(MATCH(Предмет_договора,E$1:E6,))/(КОСГУ=E$1),Предмет_договора),)","v":0},{"$f":"IFERROR(LOOKUP(,-1/ISERROR(MATCH(Предмет_договора,F$1:F6,))/(КОСГУ=F$1),Предмет_договора),)","v":"капремонт"},{"$f":"IFERROR(LOOKUP(,-1/ISERROR(MATCH(Предмет_договора,G$1:G6,))/(КОСГУ=G$1),Предмет_договора),)","v":"инкассация"},{"$f":"IFERROR(LOOKUP(,-1/ISERROR(MATCH(Предмет_договора,H$1:H6,))/(КОСГУ=H$1),Предмет_договора),)","v":0},{"$f":"IFERROR(LOOKUP(,-1/ISERROR(MATCH(Предмет_договора,I$1:I6,))/(КОСГУ=I$1),Предмет_договора),)","v":"медицинское оборудование"},{"$f":"IFERROR(LOOKUP(,-1/ISERROR(MATCH(Предмет_договора,J$1:J6,))/(КОСГУ=J$1),Предмет_договора),)","v":"канцелярские товары"}]
[null,{"$f":"IFERROR(LOOKUP(,-1/ISERROR(MATCH(Предмет_договора,B$1:B7,))/(КОСГУ=B$1),Предмет_договора),)","v":0},{"$f":"IFERROR(LOOKUP(,-1/ISERROR(MATCH(Предмет_договора,C$1:C7,))/(КОСГУ=C$1),Предмет_договора),)","v":0},{"$f":"IFERROR(LOOKUP(,-1/ISERROR(MATCH(Предмет_договора,D$1:D7,))/(КОСГУ=D$1),Предмет_договора),)","v":"электроэнергия"},{"$f":"IFERROR(LOOKUP(,-1/ISERROR(MATCH(Предмет_договора,E$1:E7,))/(КОСГУ=E$1),Предмет_договора),)","v":0},{"$f":"IFERROR(LOOKUP(,-1/ISERROR(MATCH(Предмет_договора,F$1:F7,))/(КОСГУ=F$1),Предмет_договора),)","v":"монтажные работы"},{"$f":"IFERROR(LOOKUP(,-1/ISERROR(MATCH(Предмет_договора,G$1:G7,))/(КОСГУ=G$1),Предмет_договора),)","v":"информационные услуги"},{"$f":"IFERROR(LOOKUP(,-1/ISERROR(MATCH(Предмет_договора,H$1:H7,))/(КОСГУ=H$1),Предмет_договора),)","v":0},{"$f":"IFERROR(LOOKUP(,-1/ISERROR(MATCH(Предмет_договора,I$1:I7,))/(КОСГУ=I$1),Предмет_договора),)","v":"оборудование для ремонта"},{"$f":"IFERROR(LOOKUP(,-1/ISERROR(MATCH(Предмет_договора,J$1:J7,))/(КОСГУ=J$1),Предмет_договора),)","v":"медицинские товары"}]
[null,{"$f":"IFERROR(LOOKUP(,-1/ISERROR(MATCH(Предмет_договора,B$1:B8,))/(КОСГУ=B$1),Предмет_договора),)","v":0},{"$f":"IFERROR(LOOKUP(,-1/ISERROR(MATCH(Предмет_договора,C$1:C8,))/(КОСГУ=C$1),Предмет_договора),)","v":0},{"$f":"IFERROR(LOOKUP(,-1/ISERROR(MATCH(Предмет_договора,D$1:D8,))/(КОСГУ=D$1),Предмет_договора),)","v":0},{"$f":"IFERROR(LOOKUP(,-1/ISERROR(MATCH(Предмет_договора,E$1:E8,))/(КОСГУ=E$1),Предмет_договора),)","v":0},{"$f":"IFERROR(LOOKUP(,-1/ISERROR(MATCH(Предмет_договора,F$1:F8,))/(КОСГУ=F$1),Предмет_договора),)","v":"оценка технического состояния"},{"$f":"IFERROR(LOOKUP(,-1/ISERROR(MATCH(Предмет_договора,G$1:G8,))/(КОСГУ=G$1),Предмет_договора),)","v":"командирование, стажировки"},{"$f":"IFERROR(LOOKUP(,-1/ISERROR(MATCH(Предмет_договора,H$1:H8,))/(КОСГУ=H$1),Предмет_договора),)","v":0},{"$f":"IFERROR(LOOKUP(,-1/ISERROR(MATCH(Предмет_договора,I$1:I8,))/(КОСГУ=I$1),Предмет_договора),)","v":"оборудование для типографии"},{"$f":"IFERROR(LOOKUP(,-1/ISERROR(MATCH(Предмет_договора,J$1:J8,))/(КОСГУ=J$1),Предмет_договора),)","v":"мягкий инвентарь"}]
[null,{"$f":"IFERROR(LOOKUP(,-1/ISERROR(MATCH(Предмет_договора,B$1:B9,))/(КОСГУ=B$1),Предмет_договора),)","v":0},{"$f":"IFERROR(LOOKUP(,-1/ISERROR(MATCH(Предмет_договора,C$1:C9,))/(КОСГУ=C$1),Предмет_договора),)","v":0},{"$f":"IFERROR(LOOKUP(,-1/ISERROR(MATCH(Предмет_договора,D$1:D9,))/(КОСГУ=D$1),Предмет_договора),)","v":0},{"$f":"IFERROR(LOOKUP(,-1/ISERROR(MATCH(Предмет_договора,E$1:E9,))/(КОСГУ=E$1),Предмет_договора),)","v":0},{"$f":"IFERROR(LOOKUP(,-1/ISERROR(MATCH(Предмет_договора,F$1:F9,))/(КОСГУ=F$1),Предмет_договора),)","v":"проведение бактериолог исследований воздуха и иных нефинансовых активов"},{"$f":"IFERROR(LOOKUP(,-1/ISERROR(MATCH(Предмет_договора,G$1:G9,))/(КОСГУ=G$1),Предмет_договора),)","v":"компьютерный сервис"},{"$f":"IFERROR(LOOKUP(,-1/ISERROR(MATCH(Предмет_договора,H$1:H9,))/(КОСГУ=H$1),Предмет_договора),)","v":0},{"$f":"IFERROR(LOOKUP(,-1/ISERROR(MATCH(Предмет_договора,I$1:I9,))/(КОСГУ=I$1),Предмет_договора),)","v":"прочие средства"},{"$f":"IFERROR(LOOKUP(,-1/ISERROR(MATCH(Предмет_договора,J$1:J9,))/(КОСГУ=J$1),Предмет_договора),)","v":"питьевая вода"}]
[null,{"$f":"IFERROR(LOOKUP(,-1/ISERROR(MATCH(Предмет_договора,B$1:B10,))/(КОСГУ=B$1),Предмет_договора),)","v":0},{"$f":"IFERROR(LOOKUP(,-1/ISERROR(MATCH(Предмет_договора,C$1:C10,))/(КОСГУ=C$1),Предмет_договора),)","v":0},{"$f":"IFERROR(LOOKUP(,-1/ISERROR(MATCH(Предмет_договора,D$1:D10,))/(КОСГУ=D$1),Предмет_договора),)","v":0},{"$f":"IFERROR(LOOKUP(,-1/ISERROR(MATCH(Предмет_договора,E$1:E10,))/(КОСГУ=E$1),Предмет_договора),)","v":0},{"$f":"IFERROR(LOOKUP(,-1/ISERROR(MATCH(Предмет_договора,F$1:F10,))/(КОСГУ=F$1),Предмет_договора),)","v":"противопожарные мероприятия"},{"$f":"IFERROR(LOOKUP(,-1/ISERROR(MATCH(Предмет_договора,G$1:G10,))/(КОСГУ=G$1),Предмет_договора),)","v":"конкурсы, выставки, конференции для студентов и работников"},{"$f":"IFERROR(LOOKUP(,-1/ISERROR(MATCH(Предмет_договора,H$1:H10,))/(КОСГУ=H$1),Предмет_договора),)","v":0},{"$f":"IFERROR(LOOKUP(,-1/ISERROR(MATCH(Предмет_договора,I$1:I10,))/(КОСГУ=I$1),Предмет_договора),)","v":"спортивное оборудование"},{"$f":"IFERROR(LOOKUP(,-1/ISERROR(MATCH(Предмет_договора,J$1:J10,))/(КОСГУ=J$1),Предмет_договора),)","v":"продукты питания"}]
[null,{"$f":"IFERROR(LOOKUP(,-1/ISERROR(MATCH(Предмет_договора,B$1:B11,))/(КОСГУ=B$1),Предмет_договора),)","v":0},{"$f":"IFERROR(LOOKUP(,-1/ISERROR(MATCH(Предмет_договора,C$1:C11,))/(КОСГУ=C$1),Предмет_договора),)","v":0},{"$f":"IFERROR(LOOKUP(,-1/ISERROR(MATCH(Предмет_договора,D$1:D11,))/(КОСГУ=D$1),Предмет_договора),)","v":0},{"$f":"IFERROR(LOOKUP(,-1/ISERROR(MATCH(Предмет_договора,E$1:E11,))/(КОСГУ=E$1),Предмет_договора),)","v":0},{"$f":"IFERROR(LOOKUP(,-1/ISERROR(MATCH(Предмет_договора,F$1:F11,))/(КОСГУ=F$1),Предмет_договора),)","v":"прочие работы по содержанию имущества"},{"$f":"IFERROR(LOOKUP(,-1/ISERROR(MATCH(Предмет_договора,G$1:G11,))/(КОСГУ=G$1),Предмет_договора),)","v":"курьерская доставка"},{"$f":"IFERROR(LOOKUP(,-1/ISERROR(MATCH(Предмет_договора,H$1:H11,))/(КОСГУ=H$1),Предмет_договора),)","v":0},{"$f":"IFERROR(LOOKUP(,-1/ISERROR(MATCH(Предмет_договора,I$1:I11,))/(КОСГУ=I$1),Предмет_договора),)","v":"учебное оборудование"},{"$f":"IFERROR(LOOKUP(,-1/ISERROR(MATCH(Предмет_договора,J$1:J11,))/(КОСГУ=J$1),Предмет_договора),)","v":"прочие мат. запасы"}]
[null,{"$f":"IFERROR(LOOKUP(,-1/ISERROR(MATCH(Предмет_договора,B$1:B12,))/(КОСГУ=B$1),Предмет_договора),)","v":0},{"$f":"IFERROR(LOOKUP(,-1/ISERROR(MATCH(Предмет_договора,C$1:C12,))/(КОСГУ=C$1),Предмет_договора),)","v":0},{"$f":"IFERROR(LOOKUP(,-1/ISERROR(MATCH(Предмет_договора,D$1:D12,))/(КОСГУ=D$1),Предмет_договора),)","v":0},{"$f":"IFERROR(LOOKUP(,-1/ISERROR(MATCH(Предмет_договора,E$1:E12,))/(КОСГУ=E$1),Предмет_договора),)","v":0},{"$f":"IFERROR(LOOKUP(,-1/ISERROR(MATCH(Предмет_договора,F$1:F12,))/(КОСГУ=F$1),Предмет_договора),)","v":"ремонт зданий и сооружений"},{"$f":"IFERROR(LOOKUP(,-1/ISERROR(MATCH(Предмет_договора,G$1:G12,))/(КОСГУ=G$1),Предмет_договора),)","v":"лабораторные исследования"},{"$f":"IFERROR(LOOKUP(,-1/ISERROR(MATCH(Предмет_договора,H$1:H12,))/(КОСГУ=H$1),Предмет_договора),)","v":0},{"$f":"IFERROR(LOOKUP(,-1/ISERROR(MATCH(Предмет_договора,I$1:I12,))/(КОСГУ=I$1),Предмет_договора),)","v":0},{"$f":"IFERROR(LOOKUP(,-1/ISERROR(MATCH(Предмет_договора,J$1:J12,))/(КОСГУ=J$1),Предмет_договора),)","v":"расходники для ПК, оргтехники"}]
[null,{"$f":"IFERROR(LOOKUP(,-1/ISERROR(MATCH(Предмет_договора,B$1:B13,))/(КОСГУ=B$1),Предмет_договора),)","v":0},{"$f":"IFERROR(LOOKUP(,-1/ISERROR(MATCH(Предмет_договора,C$1:C13,))/(КОСГУ=C$1),Предмет_договора),)","v":0},{"$f":"IFERROR(LOOKUP(,-1/ISERROR(MATCH(Предмет_договора,D$1:D13,))/(КОСГУ=D$1),Предмет_договора),)","v":0},{"$f":"IFERROR(LOOKUP(,-1/ISERROR(MATCH(Предмет_договора,E$1:E13,))/(КОСГУ=E$1),Предмет_договора),)","v":0},{"$f":"IFERROR(LOOKUP(,-1/ISERROR(MATCH(Предмет_договора,F$1:F13,))/(КОСГУ=F$1),Предмет_договора),)","v":"ремонт и то инженерных сетей"},{"$f":"IFERROR(LOOKUP(,-1/ISERROR(MATCH(Предмет_договора,G$1:G13,))/(КОСГУ=G$1),Предмет_договора),)","v":"монтажные работы"},{"$f":"IFERROR(LOOKUP(,-1/ISERROR(MATCH(Предмет_договора,H$1:H13,))/(КОСГУ=H$1),Предмет_договора),)","v":0},{"$f":"IFERROR(LOOKUP(,-1/ISERROR(MATCH(Предмет_договора,I$1:I13,))/(КОСГУ=I$1),Предмет_договора),)","v":0},{"$f":"IFERROR(LOOKUP(,-1/ISERROR(MATCH(Предмет_договора,J$1:J13,))/(КОСГУ=J$1),Предмет_договора),)","v":"расходные материалы для акустического оборудования"}]
[null,{"$f":"IFERROR(LOOKUP(,-1/ISERROR(MATCH(Предмет_договора,B$1:B14,))/(КОСГУ=B$1),Предмет_договора),)","v":0},{"$f":"IFERROR(LOOKUP(,-1/ISERROR(MATCH(Предмет_договора,C$1:C14,))/(КОСГУ=C$1),Предмет_договора),)","v":0},{"$f":"IFERROR(LOOKUP(,-1/ISERROR(MATCH(Предмет_договора,D$1:D14,))/(КОСГУ=D$1),Предмет_договора),)","v":0},{"$f":"IFERROR(LOOKUP(,-1/ISERROR(MATCH(Предмет_договора,E$1:E14,))/(КОСГУ=E$1),Предмет_договора),)","v":0},{"$f":"IFERROR(LOOKUP(,-1/ISERROR(MATCH(Предмет_договора,F$1:F14,))/(КОСГУ=F$1),Предмет_договора),)","v":"ремонт и то климатической техники"},{"$f":"IFERROR(LOOKUP(,-1/ISERROR(MATCH(Предмет_договора,G$1:G14,))/(КОСГУ=G$1),Предмет_договора),)","v":"неисключительные права на ПО"},{"$f":"IFERROR(LOOKUP(,-1/ISERROR(MATCH(Предмет_договора,H$1:H14,))/(КОСГУ=H$1),Предмет_договора),)","v":0},{"$f":"IFERROR(LOOKUP(,-1/ISERROR(MATCH(Предмет_договора,I$1:I14,))/(КОСГУ=I$1),Предмет_договора),)","v":0},{"$f":"IFERROR(LOOKUP(,-1/ISERROR(MATCH(Предмет_договора,J$1:J14,))/(КОСГУ=J$1),Предмет_договора),)","v":"расходные материалы для ремонта"}]
[null,{"$f":"IFERROR(LOOKUP(,-1/ISERROR(MATCH(Предмет_договора,B$1:B15,))/(КОСГУ=B$1),Предмет_договора),)","v":0},{"$f":"IFERROR(LOOKUP(,-1/ISERROR(MATCH(Предмет_договора,C$1:C15,))/(КОСГУ=C$1),Предмет_договора),)","v":0},{"$f":"IFERROR(LOOKUP(,-1/ISERROR(MATCH(Предмет_договора,D$1:D15,))/(КОСГУ=D$1),Предмет_договора),)","v":0},{"$f":"IFERROR(LOOKUP(,-1/ISERROR(MATCH(Предмет_договора,E$1:E15,))/(КОСГУ=E$1),Предмет_договора),)","v":0},{"$f":"IFERROR(LOOKUP(,-1/ISERROR(MATCH(Предмет_договора,F$1:F15,))/(КОСГУ=F$1),Предмет_договора),)","v":"ремонт и то лифтов"},{"$f":"IFERROR(LOOKUP(,-1/ISERROR(MATCH(Предмет_договора,G$1:G15,))/(КОСГУ=G$1),Предмет_договора),)","v":"образовательные услуги, семинары"},{"$f":"IFERROR(LOOKUP(,-1/ISERROR(MATCH(Предмет_договора,H$1:H15,))/(КОСГУ=H$1),Предмет_договора),)","v":0},{"$f":"IFERROR(LOOKUP(,-1/ISERROR(MATCH(Предмет_договора,I$1:I15,))/(КОСГУ=I$1),Предмет_договора),)","v":0},{"$f":"IFERROR(LOOKUP(,-1/ISERROR(MATCH(Предмет_договора,J$1:J15,))/(КОСГУ=J$1),Предмет_договора),)","v":"расходные материалы для типографии"}]
[null,{"$f":"IFERROR(LOOKUP(,-1/ISERROR(MATCH(Предмет_договора,B$1:B16,))/(КОСГУ=B$1),Предмет_договора),)","v":0},{"$f":"IFERROR(LOOKUP(,-1/ISERROR(MATCH(Предмет_договора,C$1:C16,))/(КОСГУ=C$1),Предмет_договора),)","v":0},{"$f":"IFERROR(LOOKUP(,-1/ISERROR(MATCH(Предмет_договора,D$1:D16,))/(КОСГУ=D$1),Предмет_договора),)","v":0},{"$f":"IFERROR(LOOKUP(,-1/ISERROR(MATCH(Предмет_договора,E$1:E16,))/(КОСГУ=E$1),Предмет_договора),)","v":0},{"$f":"IFERROR(LOOKUP(,-1/ISERROR(MATCH(Предмет_договора,F$1:F16,))/(КОСГУ=F$1),Предмет_договора),)","v":"ремонт и то медицинской техники"},{"$f":"IFERROR(LOOKUP(,-1/ISERROR(MATCH(Предмет_договора,G$1:G16,))/(КОСГУ=G$1),Предмет_договора),)","v":"организация питания"},{"$f":"IFERROR(LOOKUP(,-1/ISERROR(MATCH(Предмет_договора,H$1:H16,))/(КОСГУ=H$1),Предмет_договора),)","v":0},{"$f":"IFERROR(LOOKUP(,-1/ISERROR(MATCH(Предмет_договора,I$1:I16,))/(КОСГУ=I$1),Предмет_договора),)","v":0},{"$f":"IFERROR(LOOKUP(,-1/ISERROR(MATCH(Предмет_договора,J$1:J16,))/(КОСГУ=J$1),Предмет_договора),)","v":"спецодежда"}]
[null,{"$f":"IFERROR(LOOKUP(,-1/ISERROR(MATCH(Предмет_договора,B$1:B17,))/(КОСГУ=B$1),Предмет_договора),)","v":0},{"$f":"IFERROR(LOOKUP(,-1/ISERROR(MATCH(Предмет_договора,C$1:C17,))/(КОСГУ=C$1),Предмет_договора),)","v":0},{"$f":"IFERROR(LOOKUP(,-1/ISERROR(MATCH(Предмет_договора,D$1:D17,))/(КОСГУ=D$1),Предмет_договора),)","v":0},{"$f":"IFERROR(LOOKUP(,-1/ISERROR(MATCH(Предмет_договора,E$1:E17,))/(КОСГУ=E$1),Предмет_договора),)","v":0},{"$f":"IFERROR(LOOKUP(,-1/ISERROR(MATCH(Предмет_договора,F$1:F17,))/(КОСГУ=F$1),Предмет_договора),)","v":"ремонт и то оборудования"},{"$f":"IFERROR(LOOKUP(,-1/ISERROR(MATCH(Предмет_договора,G$1:G17,))/(КОСГУ=G$1),Предмет_договора),)","v":"оргвзнос"},{"$f":"IFERROR(LOOKUP(,-1/ISERROR(MATCH(Предмет_договора,H$1:H17,))/(КОСГУ=H$1),Предмет_договора),)","v":0},{"$f":"IFERROR(LOOKUP(,-1/ISERROR(MATCH(Предмет_договора,I$1:I17,))/(КОСГУ=I$1),Предмет_договора),)","v":0},{"$f":"IFERROR(LOOKUP(,-1/ISERROR(MATCH(Предмет_договора,J$1:J17,))/(КОСГУ=J$1),Предмет_договора),)","v":"товары для оргмероприятий"}]
[null,{"$f":"IFERROR(LOOKUP(,-1/ISERROR(MATCH(Предмет_договора,B$1:B18,))/(КОСГУ=B$1),Предмет_договора),)","v":0},{"$f":"IFERROR(LOOKUP(,-1/ISERROR(MATCH(Предмет_договора,C$1:C18,))/(КОСГУ=C$1),Предмет_договора),)","v":0},{"$f":"IFERROR(LOOKUP(,-1/ISERROR(MATCH(Предмет_договора,D$1:D18,))/(КОСГУ=D$1),Предмет_договора),)","v":0},{"$f":"IFERROR(LOOKUP(,-1/ISERROR(MATCH(Предмет_договора,E$1:E18,))/(КОСГУ=E$1),Предмет_договора),)","v":0},{"$f":"IFERROR(LOOKUP(,-1/ISERROR(MATCH(Предмет_договора,F$1:F18,))/(КОСГУ=F$1),Предмет_договора),)","v":"ремонт и то оргтехники"},{"$f":"IFERROR(LOOKUP(,-1/ISERROR(MATCH(Предмет_договора,G$1:G18,))/(КОСГУ=G$1),Предмет_договора),)","v":"охрана"},{"$f":"IFERROR(LOOKUP(,-1/ISERROR(MATCH(Предмет_договора,H$1:H18,))/(КОСГУ=H$1),Предмет_договора),)","v":0},{"$f":"IFERROR(LOOKUP(,-1/ISERROR(MATCH(Предмет_договора,I$1:I18,))/(КОСГУ=I$1),Предмет_договора),)","v":0},{"$f":"IFERROR(LOOKUP(,-1/ISERROR(MATCH(Предмет_договора,J$1:J18,))/(КОСГУ=J$1),Предмет_договора),)","v":"топливо"}]
[null,{"$f":"IFERROR(LOOKUP(,-1/ISERROR(MATCH(Предмет_договора,B$1:B19,))/(КОСГУ=B$1),Предмет_договора),)","v":0},{"$f":"IFERROR(LOOKUP(,-1/ISERROR(MATCH(Предмет_договора,C$1:C19,))/(КОСГУ=C$1),Предмет_договора),)","v":0},{"$f":"IFERROR(LOOKUP(,-1/ISERROR(MATCH(Предмет_договора,D$1:D19,))/(КОСГУ=D$1),Предмет_договора),)","v":0},{"$f":"IFERROR(LOOKUP(,-1/ISERROR(MATCH(Предмет_договора,E$1:E19,))/(КОСГУ=E$1),Предмет_договора),)","v":0},{"$f":"IFERROR(LOOKUP(,-1/ISERROR(MATCH(Предмет_договора,F$1:F19,))/(КОСГУ=F$1),Предмет_договора),)","v":"ремонт и то пожарной сигнализации"},{"$f":"IFERROR(LOOKUP(,-1/ISERROR(MATCH(Предмет_договора,G$1:G19,))/(КОСГУ=G$1),Предмет_договора),)","v":"оценочные услуги"},{"$f":"IFERROR(LOOKUP(,-1/ISERROR(MATCH(Предмет_договора,H$1:H19,))/(КОСГУ=H$1),Предмет_договора),)","v":0},{"$f":"IFERROR(LOOKUP(,-1/ISERROR(MATCH(Предмет_договора,I$1:I19,))/(КОСГУ=I$1),Предмет_договора),)","v":0},{"$f":"IFERROR(LOOKUP(,-1/ISERROR(MATCH(Предмет_договора,J$1:J19,))/(КОСГУ=J$1),Предмет_договора),)","v":"хозтовары"}]
[null,{"$f":"IFERROR(LOOKUP(,-1/ISERROR(MATCH(Предмет_договора,B$1:B20,))/(КОСГУ=B$1),Предмет_договора),)","v":0},{"$f":"IFERROR(LOOKUP(,-1/ISERROR(MATCH(Предмет_договора,C$1:C20,))/(КОСГУ=C$1),Предмет_договора),)","v":0},{"$f":"IFERROR(LOOKUP(,-1/ISERROR(MATCH(Предмет_договора,D$1:D20,))/(КОСГУ=D$1),Предмет_договора),)","v":0},{"$f":"IFERROR(LOOKUP(,-1/ISERROR(MATCH(Предмет_договора,E$1:E20,))/(КОСГУ=E$1),Предмет_договора),)","v":0},{"$f":"IFERROR(LOOKUP(,-1/ISERROR(MATCH(Предмет_договора,F$1:F20,))/(КОСГУ=F$1),Предмет_договора),)","v":"ремонт и то средств охраны"},{"$f":"IFERROR(LOOKUP(,-1/ISERROR(MATCH(Предмет_договора,G$1:G20,))/(КОСГУ=G$1),Предмет_договора),)","v":"повышение квалификации, переаттестация"},{"$f":"IFERROR(LOOKUP(,-1/ISERROR(MATCH(Предмет_договора,H$1:H20,))/(КОСГУ=H$1),Предмет_договора),)","v":0},{"$f":"IFERROR(LOOKUP(,-1/ISERROR(MATCH(Предмет_договора,I$1:I20,))/(КОСГУ=I$1),Предмет_договора),)","v":0},{"$f":"IFERROR(LOOKUP(,-1/ISERROR(MATCH(Предмет_договора,J$1:J20,))/(КОСГУ=J$1),Предмет_договора),)","v":"электротехнические товары"}]
[null,{"$f":"IFERROR(LOOKUP(,-1/ISERROR(MATCH(Предмет_договора,B$1:B21,))/(КОСГУ=B$1),Предмет_договора),)","v":0},{"$f":"IFERROR(LOOKUP(,-1/ISERROR(MATCH(Предмет_договора,C$1:C21,))/(КОСГУ=C$1),Предмет_договора),)","v":0},{"$f":"IFERROR(LOOKUP(,-1/ISERROR(MATCH(Предмет_договора,D$1:D21,))/(КОСГУ=D$1),Предмет_договора),)","v":0},{"$f":"IFERROR(LOOKUP(,-1/ISERROR(MATCH(Предмет_договора,E$1:E21,))/(КОСГУ=E$1),Предмет_договора),)","v":0},{"$f":"IFERROR(LOOKUP(,-1/ISERROR(MATCH(Предмет_договора,F$1:F21,))/(КОСГУ=F$1),Предмет_договора),)","v":"ремонт и то транспортных средств"},{"$f":"IFERROR(LOOKUP(,-1/ISERROR(MATCH(Предмет_договора,G$1:G21,))/(КОСГУ=G$1),Предмет_договора),)","v":"погрузочно-разгрузочные, такелажные работы"},{"$f":"IFERROR(LOOKUP(,-1/ISERROR(MATCH(Предмет_договора,H$1:H21,))/(КОСГУ=H$1),Предмет_договора),)","v":0},{"$f":"IFERROR(LOOKUP(,-1/ISERROR(MATCH(Предмет_договора,I$1:I21,))/(КОСГУ=I$1),Предмет_договора),)","v":0},{"$f":"IFERROR(LOOKUP(,-1/ISERROR(MATCH(Предмет_договора,J$1:J21,))/(КОСГУ=J$1),Предмет_договора),)","v":0}]
[null,{"$f":"IFERROR(LOOKUP(,-1/ISERROR(MATCH(Предмет_договора,B$1:B22,))/(КОСГУ=B$1),Предмет_договора),)","v":0},{"$f":"IFERROR(LOOKUP(,-1/ISERROR(MATCH(Предмет_договора,C$1:C22,))/(КОСГУ=C$1),Предмет_договора),)","v":0},{"$f":"IFERROR(LOOKUP(,-1/ISERROR(MATCH(Предмет_договора,D$1:D22,))/(КОСГУ=D$1),Предмет_договора),)","v":0},{"$f":"IFERROR(LOOKUP(,-1/ISERROR(MATCH(Предмет_договора,E$1:E22,))/(КОСГУ=E$1),Предмет_договора),)","v":0},{"$f":"IFERROR(LOOKUP(,-1/ISERROR(MATCH(Предмет_договора,F$1:F22,))/(КОСГУ=F$1),Предмет_договора),)","v":"ремонт офисных помещений"},{"$f":"IFERROR(LOOKUP(,-1/ISERROR(MATCH(Предмет_договора,G$1:G22,))/(КОСГУ=G$1),Предмет_договора),)","v":"подписка"},{"$f":"IFERROR(LOOKUP(,-1/ISERROR(MATCH(Предмет_договора,H$1:H22,))/(КОСГУ=H$1),Предмет_договора),)","v":0},{"$f":"IFERROR(LOOKUP(,-1/ISERROR(MATCH(Предмет_договора,I$1:I22,))/(КОСГУ=I$1),Предмет_договора),)","v":0},{"$f":"IFERROR(LOOKUP(,-1/ISERROR(MATCH(Предмет_договора,J$1:J22,))/(КОСГУ=J$1),Предмет_договора),)","v":0}]
[null,{"$f":"IFERROR(LOOKUP(,-1/ISERROR(MATCH(Предмет_договора,B$1:B23,))/(КОСГУ=B$1),Предмет_договора),)","v":0},{"$f":"IFERROR(LOOKUP(,-1/ISERROR(MATCH(Предмет_договора,C$1:C23,))/(КОСГУ=C$1),Предмет_договора),)","v":0},{"$f":"IFERROR(LOOKUP(,-1/ISERROR(MATCH(Предмет_договора,D$1:D23,))/(КОСГУ=D$1),Предмет_договора),)","v":0},{"$f":"IFERROR(LOOKUP(,-1/ISERROR(MATCH(Предмет_договора,E$1:E23,))/(КОСГУ=E$1),Предмет_договора),)","v":0},{"$f":"IFERROR(LOOKUP(,-1/ISERROR(MATCH(Предмет_договора,F$1:F23,))/(КОСГУ=F$1),Предмет_договора),)","v":"ремонт сантехнических помещений"},{"$f":"IFERROR(LOOKUP(,-1/ISERROR(MATCH(Предмет_договора,G$1:G23,))/(КОСГУ=G$1),Предмет_договора),)","v":"полиграфические услуги"},{"$f":"IFERROR(LOOKUP(,-1/ISERROR(MATCH(Предмет_договора,H$1:H23,))/(КОСГУ=H$1),Предмет_договора),)","v":0},{"$f":"IFERROR(LOOKUP(,-1/ISERROR(MATCH(Предмет_договора,I$1:I23,))/(КОСГУ=I$1),Предмет_договора),)","v":0},{"$f":"IFERROR(LOOKUP(,-1/ISERROR(MATCH(Предмет_договора,J$1:J23,))/(КОСГУ=J$1),Предмет_договора),)","v":0}]
[null,{"$f":"IFERROR(LOOKUP(,-1/ISERROR(MATCH(Предмет_договора,B$1:B24,))/(КОСГУ=B$1),Предмет_договора),)","v":0},{"$f":"IFERROR(LOOKUP(,-1/ISERROR(MATCH(Предмет_договора,C$1:C24,))/(КОСГУ=C$1),Предмет_договора),)","v":0},{"$f":"IFERROR(LOOKUP(,-1/ISERROR(MATCH(Предмет_договора,D$1:D24,))/(КОСГУ=D$1),Предмет_договора),)","v":0},{"$f":"IFERROR(LOOKUP(,-1/ISERROR(MATCH(Предмет_договора,E$1:E24,))/(КОСГУ=E$1),Предмет_договора),)","v":0},{"$f":"IFERROR(LOOKUP(,-1/ISERROR(MATCH(Предмет_договора,F$1:F24,))/(КОСГУ=F$1),Предмет_договора),)","v":"стирка белья"},{"$f":"IFERROR(LOOKUP(,-1/ISERROR(MATCH(Предмет_договора,G$1:G24,))/(КОСГУ=G$1),Предмет_договора),)","v":"прочие услуги"},{"$f":"IFERROR(LOOKUP(,-1/ISERROR(MATCH(Предмет_договора,H$1:H24,))/(КОСГУ=H$1),Предмет_договора),)","v":0},{"$f":"IFERROR(LOOKUP(,-1/ISERROR(MATCH(Предмет_договора,I$1:I24,))/(КОСГУ=I$1),Предмет_договора),)","v":0},{"$f":"IFERROR(LOOKUP(,-1/ISERROR(MATCH(Предмет_договора,J$1:J24,))/(КОСГУ=J$1),Предмет_договора),)","v":0}]
[null,{"$f":"IFERROR(LOOKUP(,-1/ISERROR(MATCH(Предмет_договора,B$1:B25,))/(КОСГУ=B$1),Предмет_договора),)","v":0},{"$f":"IFERROR(LOOKUP(,-1/ISERROR(MATCH(Предмет_договора,C$1:C25,))/(КОСГУ=C$1),Предмет_договора),)","v":0},{"$f":"IFERROR(LOOKUP(,-1/ISERROR(MATCH(Предмет_договора,D$1:D25,))/(КОСГУ=D$1),Предмет_договора),)","v":0},{"$f":"IFERROR(LOOKUP(,-1/ISERROR(MATCH(Предмет_договора,E$1:E25,))/(КОСГУ=E$1),Предмет_договора),)","v":0},{"$f":"IFERROR(LOOKUP(,-1/ISERROR(MATCH(Предмет_договора,F$1:F25,))/(КОСГУ=F$1),Предмет_договора),)","v":"текущий ремонт"},{"$f":"IFERROR(LOOKUP(,-1/ISERROR(MATCH(Предмет_договора,G$1:G25,))/(КОСГУ=G$1),Предмет_договора),)","v":"разработка проектной документации"},{"$f":"IFERROR(LOOKUP(,-1/ISERROR(MATCH(Предмет_договора,H$1:H25,))/(КОСГУ=H$1),Предмет_договора),)","v":0},{"$f":"IFERROR(LOOKUP(,-1/ISERROR(MATCH(Предмет_договора,I$1:I25,))/(КОСГУ=I$1),Предмет_договора),)","v":0},{"$f":"IFERROR(LOOKUP(,-1/ISERROR(MATCH(Предмет_договора,J$1:J25,))/(КОСГУ=J$1),Предмет_договора),)","v":0}]
[null,{"$f":"IFERROR(LOOKUP(,-1/ISERROR(MATCH(Предмет_договора,B$1:B26,))/(КОСГУ=B$1),Предмет_договора),)","v":0},{"$f":"IFERROR(LOOKUP(,-1/ISERROR(MATCH(Предмет_договора,C$1:C26,))/(КОСГУ=C$1),Предмет_договора),)","v":0},{"$f":"IFERROR(LOOKUP(,-1/ISERROR(MATCH(Предмет_договора,D$1:D26,))/(КОСГУ=D$1),Предмет_договора),)","v":0},{"$f":"IFERROR(LOOKUP(,-1/ISERROR(MATCH(Предмет_договора,E$1:E26,))/(КОСГУ=E$1),Предмет_договора),)","v":0},{"$f":"IFERROR(LOOKUP(,-1/ISERROR(MATCH(Предмет_договора,F$1:F26,))/(КОСГУ=F$1),Предмет_договора),)","v":"уборка помещений, территории"},{"$f":"IFERROR(LOOKUP(,-1/ISERROR(MATCH(Предмет_договора,G$1:G26,))/(КОСГУ=G$1),Предмет_договора),)","v":"реклама"},{"$f":"IFERROR(LOOKUP(,-1/ISERROR(MATCH(Предмет_договора,H$1:H26,))/(КОСГУ=H$1),Предмет_договора),)","v":0},{"$f":"IFERROR(LOOKUP(,-1/ISERROR(MATCH(Предмет_договора,I$1:I26,))/(КОСГУ=I$1),Предмет_договора),)","v":0},{"$f":"IFERROR(LOOKUP(,-1/ISERROR(MATCH(Предмет_договора,J$1:J26,))/(КОСГУ=J$1),Предмет_договора),)","v":0}]
[null,{"$f":"IFERROR(LOOKUP(,-1/ISERROR(MATCH(Предмет_договора,B$1:B27,))/(КОСГУ=B$1),Предмет_договора),)","v":0},{"$f":"IFERROR(LOOKUP(,-1/ISERROR(MATCH(Предмет_договора,C$1:C27,))/(КОСГУ=C$1),Предмет_договора),)","v":0},{"$f":"IFERROR(LOOKUP(,-1/ISERROR(MATCH(Предмет_договора,D$1:D27,))/(КОСГУ=D$1),Предмет_договора),)","v":0},{"$f":"IFERROR(LOOKUP(,-1/ISERROR(MATCH(Предмет_договора,E$1:E27,))/(КОСГУ=E$1),Предмет_договора),)","v":0},{"$f":"IFERROR(LOOKUP(,-1/ISERROR(MATCH(Предмет_договора,F$1:F27,))/(КОСГУ=F$1),Предмет_договора),)","v":0},{"$f":"IFERROR(LOOKUP(,-1/ISERROR(MATCH(Предмет_договора,G$1:G27,))/(КОСГУ=G$1),Предмет_договора),)","v":"сертификация"},{"$f":"IFERROR(LOOKUP(,-1/ISERROR(MATCH(Предмет_договора,H$1:H27,))/(КОСГУ=H$1),Предмет_договора),)","v":0},{"$f":"IFERROR(LOOKUP(,-1/ISERROR(MATCH(Предмет_договора,I$1:I27,))/(КОСГУ=I$1),Предмет_договора),)","v":0},{"$f":"IFERROR(LOOKUP(,-1/ISERROR(MATCH(Предмет_договора,J$1:J27,))/(КОСГУ=J$1),Предмет_договора),)","v":0}]
[null,{"$f":"IFERROR(LOOKUP(,-1/ISERROR(MATCH(Предмет_договора,B$1:B28,))/(КОСГУ=B$1),Предмет_договора),)","v":0},{"$f":"IFERROR(LOOKUP(,-1/ISERROR(MATCH(Предмет_договора,C$1:C28,))/(КОСГУ=C$1),Предмет_договора),)","v":0},{"$f":"IFERROR(LOOKUP(,-1/ISERROR(MATCH(Предмет_договора,D$1:D28,))/(КОСГУ=D$1),Предмет_договора),)","v":0},{"$f":"IFERROR(LOOKUP(,-1/ISERROR(MATCH(Предмет_договора,E$1:E28,))/(КОСГУ=E$1),Предмет_договора),)","v":0},{"$f":"IFERROR(LOOKUP(,-1/ISERROR(MATCH(Предмет_договора,F$1:F28,))/(КОСГУ=F$1),Предмет_договора),)","v":0},{"$f":"IFERROR(LOOKUP(,-1/ISERROR(MATCH(Предмет_договора,G$1:G28,))/(КОСГУ=G$1),Предмет_договора),)","v":"страхование"},{"$f":"IFERROR(LOOKUP(,-1/ISERROR(MATCH(Предмет_договора,H$1:H28,))/(КОСГУ=H$1),Предмет_договора),)","v":0},{"$f":"IFERROR(LOOKUP(,-1/ISERROR(MATCH(Предмет_договора,I$1:I28,))/(КОСГУ=I$1),Предмет_договора),)","v":0},{"$f":"IFERROR(LOOKUP(,-1/ISERROR(MATCH(Предмет_договора,J$1:J28,))/(КОСГУ=J$1),Предмет_договора),)","v":0}]
[null,{"$f":"IFERROR(LOOKUP(,-1/ISERROR(MATCH(Предмет_договора,B$1:B29,))/(КОСГУ=B$1),Предмет_договора),)","v":0},{"$f":"IFERROR(LOOKUP(,-1/ISERROR(MATCH(Предмет_договора,C$1:C29,))/(КОСГУ=C$1),Предмет_договора),)","v":0},{"$f":"IFERROR(LOOKUP(,-1/ISERROR(MATCH(Предмет_договора,D$1:D29,))/(КОСГУ=D$1),Предмет_договора),)","v":0},{"$f":"IFERROR(LOOKUP(,-1/ISERROR(MATCH(Предмет_договора,E$1:E29,))/(КОСГУ=E$1),Предмет_договора),)","v":0},{"$f":"IFERROR(LOOKUP(,-1/ISERROR(MATCH(Предмет_договора,F$1:F29,))/(КОСГУ=F$1),Предмет_договора),)","v":0},{"$f":"IFERROR(LOOKUP(,-1/ISERROR(MATCH(Предмет_договора,G$1:G29,))/(КОСГУ=G$1),Предмет_договора),)","v":"сублецензионное вознаграждение"},{"$f":"IFERROR(LOOKUP(,-1/ISERROR(MATCH(Предмет_договора,H$1:H29,))/(КОСГУ=H$1),Предмет_договора),)","v":0},{"$f":"IFERROR(LOOKUP(,-1/ISERROR(MATCH(Предмет_договора,I$1:I29,))/(КОСГУ=I$1),Предмет_договора),)","v":0},{"$f":"IFERROR(LOOKUP(,-1/ISERROR(MATCH(Предмет_договора,J$1:J29,))/(КОСГУ=J$1),Предмет_договора),)","v":0}]
[null,{"$f":"IFERROR(LOOKUP(,-1/ISERROR(MATCH(Предмет_договора,B$1:B30,))/(КОСГУ=B$1),Предмет_договора),)","v":0},{"$f":"IFERROR(LOOKUP(,-1/ISERROR(MATCH(Предмет_договора,C$1:C30,))/(КОСГУ=C$1),Предмет_договора),)","v":0},{"$f":"IFERROR(LOOKUP(,-1/ISERROR(MATCH(Предмет_договора,D$1:D30,))/(КОСГУ=D$1),Предмет_договора),)","v":0},{"$f":"IFERROR(LOOKUP(,-1/ISERROR(MATCH(Предмет_договора,E$1:E30,))/(КОСГУ=E$1),Предмет_договора),)","v":0},{"$f":"IFERROR(LOOKUP(,-1/ISERROR(MATCH(Предмет_договора,F$1:F30,))/(КОСГУ=F$1),Предмет_договора),)","v":0},{"$f":"IFERROR(LOOKUP(,-1/ISERROR(MATCH(Предмет_договора,G$1:G30,))/(КОСГУ=G$1),Предмет_договора),)","v":"технический учет и инвентаризация"},{"$f":"IFERROR(LOOKUP(,-1/ISERROR(MATCH(Предмет_договора,H$1:H30,))/(КОСГУ=H$1),Предмет_договора),)","v":0},{"$f":"IFERROR(LOOKUP(,-1/ISERROR(MATCH(Предмет_договора,I$1:I30,))/(КОСГУ=I$1),Предмет_договора),)","v":0},{"$f":"IFERROR(LOOKUP(,-1/ISERROR(MATCH(Предмет_договора,J$1:J30,))/(КОСГУ=J$1),Предмет_договора),)","v":0}]
[null,{"$f":"IFERROR(LOOKUP(,-1/ISERROR(MATCH(Предмет_договора,B$1:B31,))/(КОСГУ=B$1),Предмет_договора),)","v":0},{"$f":"IFERROR(LOOKUP(,-1/ISERROR(MATCH(Предмет_договора,C$1:C31,))/(КОСГУ=C$1),Предмет_договора),)","v":0},{"$f":"IFERROR(LOOKUP(,-1/ISERROR(MATCH(Предмет_договора,D$1:D31,))/(КОСГУ=D$1),Предмет_договора),)","v":0},{"$f":"IFERROR(LOOKUP(,-1/ISERROR(MATCH(Предмет_договора,E$1:E31,))/(КОСГУ=E$1),Предмет_договора),)","v":0},{"$f":"IFERROR(LOOKUP(,-1/ISERROR(MATCH(Предмет_договора,F$1:F31,))/(КОСГУ=F$1),Предмет_договора),)","v":0},{"$f":"IFERROR(LOOKUP(,-1/ISERROR(MATCH(Предмет_договора,G$1:G31,))/(КОСГУ=G$1),Предмет_договора),)","v":"услуги по сдаче отчетности"},{"$f":"IFERROR(LOOKUP(,-1/ISERROR(MATCH(Предмет_договора,H$1:H31,))/(КОСГУ=H$1),Предмет_договора),)","v":0},{"$f":"IFERROR(LOOKUP(,-1/ISERROR(MATCH(Предмет_договора,I$1:I31,))/(КОСГУ=I$1),Предмет_договора),)","v":0},{"$f":"IFERROR(LOOKUP(,-1/ISERROR(MATCH(Предмет_договора,J$1:J31,))/(КОСГУ=J$1),Предмет_договора),)","v":0}]
[null,{"$f":"IFERROR(LOOKUP(,-1/ISERROR(MATCH(Предмет_договора,B$1:B32,))/(КОСГУ=B$1),Предмет_договора),)","v":0},{"$f":"IFERROR(LOOKUP(,-1/ISERROR(MATCH(Предмет_договора,C$1:C32,))/(КОСГУ=C$1),Предмет_договора),)","v":0},{"$f":"IFERROR(LOOKUP(,-1/ISERROR(MATCH(Предмет_договора,D$1:D32,))/(КОСГУ=D$1),Предмет_договора),)","v":0},{"$f":"IFERROR(LOOKUP(,-1/ISERROR(MATCH(Предмет_договора,E$1:E32,))/(КОСГУ=E$1),Предмет_договора),)","v":0},{"$f":"IFERROR(LOOKUP(,-1/ISERROR(MATCH(Предмет_договора,F$1:F32,))/(КОСГУ=F$1),Предмет_договора),)","v":0},{"$f":"IFERROR(LOOKUP(,-1/ISERROR(MATCH(Предмет_договора,G$1:G32,))/(КОСГУ=G$1),Предмет_договора),)","v":"электромонтажные работы"},{"$f":"IFERROR(LOOKUP(,-1/ISERROR(MATCH(Предмет_договора,H$1:H32,))/(КОСГУ=H$1),Предмет_договора),)","v":0},{"$f":"IFERROR(LOOKUP(,-1/ISERROR(MATCH(Предмет_договора,I$1:I32,))/(КОСГУ=I$1),Предмет_договора),)","v":0},{"$f":"IFERROR(LOOKUP(,-1/ISERROR(MATCH(Предмет_договора,J$1:J32,))/(КОСГУ=J$1),Предмет_договора),)","v":0}]
[null,{"$f":"IFERROR(LOOKUP(,-1/ISERROR(MATCH(Предмет_договора,B$1:B33,))/(КОСГУ=B$1),Предмет_договора),)","v":0},{"$f":"IFERROR(LOOKUP(,-1/ISERROR(MATCH(Предмет_договора,C$1:C33,))/(КОСГУ=C$1),Предмет_договора),)","v":0},{"$f":"IFERROR(LOOKUP(,-1/ISERROR(MATCH(Предмет_договора,D$1:D33,))/(КОСГУ=D$1),Предмет_договора),)","v":0},{"$f":"IFERROR(LOOKUP(,-1/ISERROR(MATCH(Предмет_договора,E$1:E33,))/(КОСГУ=E$1),Предмет_договора),)","v":0},{"$f":"IFERROR(LOOKUP(,-1/ISERROR(MATCH(Предмет_договора,F$1:F33,))/(КОСГУ=F$1),Предмет_договора),)","v":0},{"$f":"IFERROR(LOOKUP(,-1/ISERROR(MATCH(Предмет_договора,G$1:G33,))/(КОСГУ=G$1),Предмет_договора),)","v":"юридические услуги"},{"$f":"IFERROR(LOOKUP(,-1/ISERROR(MATCH(Предмет_договора,H$1:H33,))/(КОСГУ=H$1),Предмет_договора),)","v":0},{"$f":"IFERROR(LOOKUP(,-1/ISERROR(MATCH(Предмет_договора,I$1:I33,))/(КОСГУ=I$1),Предмет_договора),)","v":0},{"$f":"IFERROR(LOOKUP(,-1/ISERROR(MATCH(Предмет_договора,J$1:J33,))/(КОСГУ=J$1),Предмет_договора),)","v":0}]
[null,{"$f":"IFERROR(LOOKUP(,-1/ISERROR(MATCH(Предмет_договора,B$1:B34,))/(КОСГУ=B$1),Предмет_договора),)","v":0},{"$f":"IFERROR(LOOKUP(,-1/ISERROR(MATCH(Предмет_договора,C$1:C34,))/(КОСГУ=C$1),Предмет_договора),)","v":0},{"$f":"IFERROR(LOOKUP(,-1/ISERROR(MATCH(Предмет_договора,D$1:D34,))/(КОСГУ=D$1),Предмет_договора),)","v":0},{"$f":"IFERROR(LOOKUP(,-1/ISERROR(MATCH(Предмет_договора,E$1:E34,))/(КОСГУ=E$1),Предмет_договора),)","v":0},{"$f":"IFERROR(LOOKUP(,-1/ISERROR(MATCH(Предмет_договора,F$1:F34,))/(КОСГУ=F$1),Предмет_договора),)","v":0},{"$f":"IFERROR(LOOKUP(,-1/ISERROR(MATCH(Предмет_договора,G$1:G34,))/(КОСГУ=G$1),Предмет_договора),)","v":0},{"$f":"IFERROR(LOOKUP(,-1/ISERROR(MATCH(Предмет_договора,H$1:H34,))/(КОСГУ=H$1),Предмет_договора),)","v":0},{"$f":"IFERROR(LOOKUP(,-1/ISERROR(MATCH(Предмет_договора,I$1:I34,))/(КОСГУ=I$1),Предмет_договора),)","v":0},{"$f":"IFERROR(LOOKUP(,-1/ISERROR(MATCH(Предмет_договора,J$1:J34,))/(КОСГУ=J$1),Предмет_договора),)","v":0}]
[null,{"$f":"IFERROR(LOOKUP(,-1/ISERROR(MATCH(Предмет_договора,B$1:B35,))/(КОСГУ=B$1),Предмет_договора),)","v":0},{"$f":"IFERROR(LOOKUP(,-1/ISERROR(MATCH(Предмет_договора,C$1:C35,))/(КОСГУ=C$1),Предмет_договора),)","v":0},{"$f":"IFERROR(LOOKUP(,-1/ISERROR(MATCH(Предмет_договора,D$1:D35,))/(КОСГУ=D$1),Предмет_договора),)","v":0},{"$f":"IFERROR(LOOKUP(,-1/ISERROR(MATCH(Предмет_договора,E$1:E35,))/(КОСГУ=E$1),Предмет_договора),)","v":0},{"$f":"IFERROR(LOOKUP(,-1/ISERROR(MATCH(Предмет_договора,F$1:F35,))/(КОСГУ=F$1),Предмет_договора),)","v":0},{"$f":"IFERROR(LOOKUP(,-1/ISERROR(MATCH(Предмет_договора,G$1:G35,))/(КОСГУ=G$1),Предмет_договора),)","v":0},{"$f":"IFERROR(LOOKUP(,-1/ISERROR(MATCH(Предмет_договора,H$1:H35,))/(КОСГУ=H$1),Предмет_договора),)","v":0},{"$f":"IFERROR(LOOKUP(,-1/ISERROR(MATCH(Предмет_договора,I$1:I35,))/(КОСГУ=I$1),Предмет_договора),)","v":0},{"$f":"IFERROR(LOOKUP(,-1/ISERROR(MATCH(Предмет_договора,J$1:J35,))/(КОСГУ=J$1),Предмет_договора),)","v":0}]
[null,{"$f":"IFERROR(LOOKUP(,-1/ISERROR(MATCH(Предмет_договора,B$1:B36,))/(КОСГУ=B$1),Предмет_договора),)","v":0},{"$f":"IFERROR(LOOKUP(,-1/ISERROR(MATCH(Предмет_договора,C$1:C36,))/(КОСГУ=C$1),Предмет_договора),)","v":0},{"$f":"IFERROR(LOOKUP(,-1/ISERROR(MATCH(Предмет_договора,D$1:D36,))/(КОСГУ=D$1),Предмет_договора),)","v":0},{"$f":"IFERROR(LOOKUP(,-1/ISERROR(MATCH(Предмет_договора,E$1:E36,))/(КОСГУ=E$1),Предмет_договора),)","v":0},{"$f":"IFERROR(LOOKUP(,-1/ISERROR(MATCH(Предмет_договора,F$1:F36,))/(КОСГУ=F$1),Предмет_договора),)","v":0},{"$f":"IFERROR(LOOKUP(,-1/ISERROR(MATCH(Предмет_договора,G$1:G36,))/(КОСГУ=G$1),Предмет_договора),)","v":0},{"$f":"IFERROR(LOOKUP(,-1/ISERROR(MATCH(Предмет_договора,H$1:H36,))/(КОСГУ=H$1),Предмет_договора),)","v":0},{"$f":"IFERROR(LOOKUP(,-1/ISERROR(MATCH(Предмет_договора,I$1:I36,))/(КОСГУ=I$1),Предмет_договора),)","v":0},{"$f":"IFERROR(LOOKUP(,-1/ISERROR(MATCH(Предмет_договора,J$1:J36,))/(КОСГУ=J$1),Предмет_договора),)","v":0}]
[null,{"$f":"IFERROR(LOOKUP(,-1/ISERROR(MATCH(Предмет_договора,B$1:B37,))/(КОСГУ=B$1),Предмет_договора),)","v":0},{"$f":"IFERROR(LOOKUP(,-1/ISERROR(MATCH(Предмет_договора,C$1:C37,))/(КОСГУ=C$1),Предмет_договора),)","v":0},{"$f":"IFERROR(LOOKUP(,-1/ISERROR(MATCH(Предмет_договора,D$1:D37,))/(КОСГУ=D$1),Предмет_договора),)","v":0},{"$f":"IFERROR(LOOKUP(,-1/ISERROR(MATCH(Предмет_договора,E$1:E37,))/(КОСГУ=E$1),Предмет_договора),)","v":0},{"$f":"IFERROR(LOOKUP(,-1/ISERROR(MATCH(Предмет_договора,F$1:F37,))/(КОСГУ=F$1),Предмет_договора),)","v":0},{"$f":"IFERROR(LOOKUP(,-1/ISERROR(MATCH(Предмет_договора,G$1:G37,))/(КОСГУ=G$1),Предмет_договора),)","v":0},{"$f":"IFERROR(LOOKUP(,-1/ISERROR(MATCH(Предмет_договора,H$1:H37,))/(КОСГУ=H$1),Предмет_договора),)","v":0},{"$f":"IFERROR(LOOKUP(,-1/ISERROR(MATCH(Предмет_договора,I$1:I37,))/(КОСГУ=I$1),Предмет_договора),)","v":0},{"$f":"IFERROR(LOOKUP(,-1/ISERROR(MATCH(Предмет_договора,J$1:J37,))/(КОСГУ=J$1),Предмет_договора),)","v":0}]
[null,{"$f":"IFERROR(LOOKUP(,-1/ISERROR(MATCH(Предмет_договора,B$1:B38,))/(КОСГУ=B$1),Предмет_договора),)","v":0},{"$f":"IFERROR(LOOKUP(,-1/ISERROR(MATCH(Предмет_договора,C$1:C38,))/(КОСГУ=C$1),Предмет_договора),)","v":0},{"$f":"IFERROR(LOOKUP(,-1/ISERROR(MATCH(Предмет_договора,D$1:D38,))/(КОСГУ=D$1),Предмет_договора),)","v":0},{"$f":"IFERROR(LOOKUP(,-1/ISERROR(MATCH(Предмет_договора,E$1:E38,))/(КОСГУ=E$1),Предмет_договора),)","v":0},{"$f":"IFERROR(LOOKUP(,-1/ISERROR(MATCH(Предмет_договора,F$1:F38,))/(КОСГУ=F$1),Предмет_договора),)","v":0},{"$f":"IFERROR(LOOKUP(,-1/ISERROR(MATCH(Предмет_договора,G$1:G38,))/(КОСГУ=G$1),Предмет_договора),)","v":0},{"$f":"IFERROR(LOOKUP(,-1/ISERROR(MATCH(Предмет_договора,H$1:H38,))/(КОСГУ=H$1),Предмет_договора),)","v":0},{"$f":"IFERROR(LOOKUP(,-1/ISERROR(MATCH(Предмет_договора,I$1:I38,))/(КОСГУ=I$1),Предмет_договора),)","v":0},{"$f":"IFERROR(LOOKUP(,-1/ISERROR(MATCH(Предмет_договора,J$1:J38,))/(КОСГУ=J$1),Предмет_договора),)","v":0}]
[null,{"$f":"IFERROR(LOOKUP(,-1/ISERROR(MATCH(Предмет_договора,B$1:B39,))/(КОСГУ=B$1),Предмет_договора),)","v":0},{"$f":"IFERROR(LOOKUP(,-1/ISERROR(MATCH(Предмет_договора,C$1:C39,))/(КОСГУ=C$1),Предмет_договора),)","v":0},{"$f":"IFERROR(LOOKUP(,-1/ISERROR(MATCH(Предмет_договора,D$1:D39,))/(КОСГУ=D$1),Предмет_договора),)","v":0},{"$f":"IFERROR(LOOKUP(,-1/ISERROR(MATCH(Предмет_договора,E$1:E39,))/(КОСГУ=E$1),Предмет_договора),)","v":0},{"$f":"IFERROR(LOOKUP(,-1/ISERROR(MATCH(Предмет_договора,F$1:F39,))/(КОСГУ=F$1),Предмет_договора),)","v":0},{"$f":"IFERROR(LOOKUP(,-1/ISERROR(MATCH(Предмет_договора,G$1:G39,))/(КОСГУ=G$1),Предмет_договора),)","v":0},{"$f":"IFERROR(LOOKUP(,-1/ISERROR(MATCH(Предмет_договора,H$1:H39,))/(КОСГУ=H$1),Предмет_договора),)","v":0},{"$f":"IFERROR(LOOKUP(,-1/ISERROR(MATCH(Предмет_договора,I$1:I39,))/(КОСГУ=I$1),Предмет_договора),)","v":0},{"$f":"IFERROR(LOOKUP(,-1/ISERROR(MATCH(Предмет_договора,J$1:J39,))/(КОСГУ=J$1),Предмет_договора),)","v":0}]
[null,{"$f":"IFERROR(LOOKUP(,-1/ISERROR(MATCH(Предмет_договора,B$1:B40,))/(КОСГУ=B$1),Предмет_договора),)","v":0},{"$f":"IFERROR(LOOKUP(,-1/ISERROR(MATCH(Предмет_договора,C$1:C40,))/(КОСГУ=C$1),Предмет_договора),)","v":0},{"$f":"IFERROR(LOOKUP(,-1/ISERROR(MATCH(Предмет_договора,D$1:D40,))/(КОСГУ=D$1),Предмет_договора),)","v":0},{"$f":"IFERROR(LOOKUP(,-1/ISERROR(MATCH(Предмет_договора,E$1:E40,))/(КОСГУ=E$1),Предмет_договора),)","v":0},{"$f":"IFERROR(LOOKUP(,-1/ISERROR(MATCH(Предмет_договора,F$1:F40,))/(КОСГУ=F$1),Предмет_договора),)","v":0},{"$f":"IFERROR(LOOKUP(,-1/ISERROR(MATCH(Предмет_договора,G$1:G40,))/(КОСГУ=G$1),Предмет_договора),)","v":0},{"$f":"IFERROR(LOOKUP(,-1/ISERROR(MATCH(Предмет_договора,H$1:H40,))/(КОСГУ=H$1),Предмет_договора),)","v":0},{"$f":"IFERROR(LOOKUP(,-1/ISERROR(MATCH(Предмет_договора,I$1:I40,))/(КОСГУ=I$1),Предмет_договора),)","v":0},{"$f":"IFERROR(LOOKUP(,-1/ISERROR(MATCH(Предмет_договора,J$1:J40,))/(КОСГУ=J$1),Предмет_договора),)","v":0}]
[null,{"$f":"IFERROR(LOOKUP(,-1/ISERROR(MATCH(Предмет_договора,B$1:B41,))/(КОСГУ=B$1),Предмет_договора),)","v":0},{"$f":"IFERROR(LOOKUP(,-1/ISERROR(MATCH(Предмет_договора,C$1:C41,))/(КОСГУ=C$1),Предмет_договора),)","v":0},{"$f":"IFERROR(LOOKUP(,-1/ISERROR(MATCH(Предмет_договора,D$1:D41,))/(КОСГУ=D$1),Предмет_договора),)","v":0},{"$f":"IFERROR(LOOKUP(,-1/ISERROR(MATCH(Предмет_договора,E$1:E41,))/(КОСГУ=E$1),Предмет_договора),)","v":0},{"$f":"IFERROR(LOOKUP(,-1/ISERROR(MATCH(Предмет_договора,F$1:F41,))/(КОСГУ=F$1),Предмет_договора),)","v":0},{"$f":"IFERROR(LOOKUP(,-1/ISERROR(MATCH(Предмет_договора,G$1:G41,))/(КОСГУ=G$1),Предмет_договора),)","v":0},{"$f":"IFERROR(LOOKUP(,-1/ISERROR(MATCH(Предмет_договора,H$1:H41,))/(КОСГУ=H$1),Предмет_договора),)","v":0},{"$f":"IFERROR(LOOKUP(,-1/ISERROR(MATCH(Предмет_договора,I$1:I41,))/(КОСГУ=I$1),Предмет_договора),)","v":0},{"$f":"IFERROR(LOOKUP(,-1/ISERROR(MATCH(Предмет_договора,J$1:J41,))/(КОСГУ=J$1),Предмет_договора),)","v":0}]
[null,{"$f":"IFERROR(LOOKUP(,-1/ISERROR(MATCH(Предмет_договора,B$1:B42,))/(КОСГУ=B$1),Предмет_договора),)","v":0},{"$f":"IFERROR(LOOKUP(,-1/ISERROR(MATCH(Предмет_договора,C$1:C42,))/(КОСГУ=C$1),Предмет_договора),)","v":0},{"$f":"IFERROR(LOOKUP(,-1/ISERROR(MATCH(Предмет_договора,D$1:D42,))/(КОСГУ=D$1),Предмет_договора),)","v":0},{"$f":"IFERROR(LOOKUP(,-1/ISERROR(MATCH(Предмет_договора,E$1:E42,))/(КОСГУ=E$1),Предмет_договора),)","v":0},{"$f":"IFERROR(LOOKUP(,-1/ISERROR(MATCH(Предмет_договора,F$1:F42,))/(КОСГУ=F$1),Предмет_договора),)","v":0},{"$f":"IFERROR(LOOKUP(,-1/ISERROR(MATCH(Предмет_договора,G$1:G42,))/(КОСГУ=G$1),Предмет_договора),)","v":0},{"$f":"IFERROR(LOOKUP(,-1/ISERROR(MATCH(Предмет_договора,H$1:H42,))/(КОСГУ=H$1),Предмет_договора),)","v":0},{"$f":"IFERROR(LOOKUP(,-1/ISERROR(MATCH(Предмет_договора,I$1:I42,))/(КОСГУ=I$1),Предмет_договора),)","v":0},{"$f":"IFERROR(LOOKUP(,-1/ISERROR(MATCH(Предмет_договора,J$1:J42,))/(КОСГУ=J$1),Предмет_договора),)","v":0}]
[null,{"$f":"IFERROR(LOOKUP(,-1/ISERROR(MATCH(Предмет_договора,B$1:B43,))/(КОСГУ=B$1),Предмет_договора),)","v":0},{"$f":"IFERROR(LOOKUP(,-1/ISERROR(MATCH(Предмет_договора,C$1:C43,))/(КОСГУ=C$1),Предмет_договора),)","v":0},{"$f":"IFERROR(LOOKUP(,-1/ISERROR(MATCH(Предмет_договора,D$1:D43,))/(КОСГУ=D$1),Предмет_договора),)","v":0},{"$f":"IFERROR(LOOKUP(,-1/ISERROR(MATCH(Предмет_договора,E$1:E43,))/(КОСГУ=E$1),Предмет_договора),)","v":0},{"$f":"IFERROR(LOOKUP(,-1/ISERROR(MATCH(Предмет_договора,F$1:F43,))/(КОСГУ=F$1),Предмет_договора),)","v":0},{"$f":"IFERROR(LOOKUP(,-1/ISERROR(MATCH(Предмет_договора,G$1:G43,))/(КОСГУ=G$1),Предмет_договора),)","v":0},{"$f":"IFERROR(LOOKUP(,-1/ISERROR(MATCH(Предмет_договора,H$1:H43,))/(КОСГУ=H$1),Предмет_договора),)","v":0},{"$f":"IFERROR(LOOKUP(,-1/ISERROR(MATCH(Предмет_договора,I$1:I43,))/(КОСГУ=I$1),Предмет_договора),)","v":0},{"$f":"IFERROR(LOOKUP(,-1/ISERROR(MATCH(Предмет_договора,J$1:J43,))/(КОСГУ=J$1),Предмет_договора),)","v":0}]
[null,{"$f":"IFERROR(LOOKUP(,-1/ISERROR(MATCH(Предмет_договора,B$1:B44,))/(КОСГУ=B$1),Предмет_договора),)","v":0},{"$f":"IFERROR(LOOKUP(,-1/ISERROR(MATCH(Предмет_договора,C$1:C44,))/(КОСГУ=C$1),Предмет_договора),)","v":0},{"$f":"IFERROR(LOOKUP(,-1/ISERROR(MATCH(Предмет_договора,D$1:D44,))/(КОСГУ=D$1),Предмет_договора),)","v":0},{"$f":"IFERROR(LOOKUP(,-1/ISERROR(MATCH(Предмет_договора,E$1:E44,))/(КОСГУ=E$1),Предмет_договора),)","v":0},{"$f":"IFERROR(LOOKUP(,-1/ISERROR(MATCH(Предмет_договора,F$1:F44,))/(КОСГУ=F$1),Предмет_договора),)","v":0},{"$f":"IFERROR(LOOKUP(,-1/ISERROR(MATCH(Предмет_договора,G$1:G44,))/(КОСГУ=G$1),Предмет_договора),)","v":0},{"$f":"IFERROR(LOOKUP(,-1/ISERROR(MATCH(Предмет_договора,H$1:H44,))/(КОСГУ=H$1),Предмет_договора),)","v":0},{"$f":"IFERROR(LOOKUP(,-1/ISERROR(MATCH(Предмет_договора,I$1:I44,))/(КОСГУ=I$1),Предмет_договора),)","v":0},{"$f":"IFERROR(LOOKUP(,-1/ISERROR(MATCH(Предмет_договора,J$1:J44,))/(КОСГУ=J$1),Предмет_договора),)","v":0}]
[null,{"$f":"IFERROR(LOOKUP(,-1/ISERROR(MATCH(Предмет_договора,B$1:B45,))/(КОСГУ=B$1),Предмет_договора),)","v":0},{"$f":"IFERROR(LOOKUP(,-1/ISERROR(MATCH(Предмет_договора,C$1:C45,))/(КОСГУ=C$1),Предмет_договора),)","v":0},{"$f":"IFERROR(LOOKUP(,-1/ISERROR(MATCH(Предмет_договора,D$1:D45,))/(КОСГУ=D$1),Предмет_договора),)","v":0},{"$f":"IFERROR(LOOKUP(,-1/ISERROR(MATCH(Предмет_договора,E$1:E45,))/(КОСГУ=E$1),Предмет_договора),)","v":0},{"$f":"IFERROR(LOOKUP(,-1/ISERROR(MATCH(Предмет_договора,F$1:F45,))/(КОСГУ=F$1),Предмет_договора),)","v":0},{"$f":"IFERROR(LOOKUP(,-1/ISERROR(MATCH(Предмет_договора,G$1:G45,))/(КОСГУ=G$1),Предмет_договора),)","v":0},{"$f":"IFERROR(LOOKUP(,-1/ISERROR(MATCH(Предмет_договора,H$1:H45,))/(КОСГУ=H$1),Предмет_договора),)","v":0},{"$f":"IFERROR(LOOKUP(,-1/ISERROR(MATCH(Предмет_договора,I$1:I45,))/(КОСГУ=I$1),Предмет_договора),)","v":0},{"$f":"IFERROR(LOOKUP(,-1/ISERROR(MATCH(Предмет_договора,J$1:J45,))/(КОСГУ=J$1),Предмет_договора),)","v":0}]
[null,{"$f":"IFERROR(LOOKUP(,-1/ISERROR(MATCH(Предмет_договора,B$1:B46,))/(КОСГУ=B$1),Предмет_договора),)","v":0},{"$f":"IFERROR(LOOKUP(,-1/ISERROR(MATCH(Предмет_договора,C$1:C46,))/(КОСГУ=C$1),Предмет_договора),)","v":0},{"$f":"IFERROR(LOOKUP(,-1/ISERROR(MATCH(Предмет_договора,D$1:D46,))/(КОСГУ=D$1),Предмет_договора),)","v":0},{"$f":"IFERROR(LOOKUP(,-1/ISERROR(MATCH(Предмет_договора,E$1:E46,))/(КОСГУ=E$1),Предмет_договора),)","v":0},{"$f":"IFERROR(LOOKUP(,-1/ISERROR(MATCH(Предмет_договора,F$1:F46,))/(КОСГУ=F$1),Предмет_договора),)","v":0},{"$f":"IFERROR(LOOKUP(,-1/ISERROR(MATCH(Предмет_договора,G$1:G46,))/(КОСГУ=G$1),Предмет_договора),)","v":0},{"$f":"IFERROR(LOOKUP(,-1/ISERROR(MATCH(Предмет_договора,H$1:H46,))/(КОСГУ=H$1),Предмет_договора),)","v":0},{"$f":"IFERROR(LOOKUP(,-1/ISERROR(MATCH(Предмет_договора,I$1:I46,))/(КОСГУ=I$1),Предмет_договора),)","v":0},{"$f":"IFERROR(LOOKUP(,-1/ISERROR(MATCH(Предмет_договора,J$1:J46,))/(КОСГУ=J$1),Предмет_договора),)","v":0}]
[null,{"$f":"IFERROR(LOOKUP(,-1/ISERROR(MATCH(Предмет_договора,B$1:B47,))/(КОСГУ=B$1),Предмет_договора),)","v":0},{"$f":"IFERROR(LOOKUP(,-1/ISERROR(MATCH(Предмет_договора,C$1:C47,))/(КОСГУ=C$1),Предмет_договора),)","v":0},{"$f":"IFERROR(LOOKUP(,-1/ISERROR(MATCH(Предмет_договора,D$1:D47,))/(КОСГУ=D$1),Предмет_договора),)","v":0},{"$f":"IFERROR(LOOKUP(,-1/ISERROR(MATCH(Предмет_договора,E$1:E47,))/(КОСГУ=E$1),Предмет_договора),)","v":0},{"$f":"IFERROR(LOOKUP(,-1/ISERROR(MATCH(Предмет_договора,F$1:F47,))/(КОСГУ=F$1),Предмет_договора),)","v":0},{"$f":"IFERROR(LOOKUP(,-1/ISERROR(MATCH(Предмет_договора,G$1:G47,))/(КОСГУ=G$1),Предмет_договора),)","v":0},{"$f":"IFERROR(LOOKUP(,-1/ISERROR(MATCH(Предмет_договора,H$1:H47,))/(КОСГУ=H$1),Предмет_договора),)","v":0},{"$f":"IFERROR(LOOKUP(,-1/ISERROR(MATCH(Предмет_договора,I$1:I47,))/(КОСГУ=I$1),Предмет_договора),)","v":0},{"$f":"IFERROR(LOOKUP(,-1/ISERROR(MATCH(Предмет_договора,J$1:J47,))/(КОСГУ=J$1),Предмет_договора),)","v":0}]
[null,{"$f":"IFERROR(LOOKUP(,-1/ISERROR(MATCH(Предмет_договора,B$1:B48,))/(КОСГУ=B$1),Предмет_договора),)","v":0},{"$f":"IFERROR(LOOKUP(,-1/ISERROR(MATCH(Предмет_договора,C$1:C48,))/(КОСГУ=C$1),Предмет_договора),)","v":0},{"$f":"IFERROR(LOOKUP(,-1/ISERROR(MATCH(Предмет_договора,D$1:D48,))/(КОСГУ=D$1),Предмет_договора),)","v":0},{"$f":"IFERROR(LOOKUP(,-1/ISERROR(MATCH(Предмет_договора,E$1:E48,))/(КОСГУ=E$1),Предмет_договора),)","v":0},{"$f":"IFERROR(LOOKUP(,-1/ISERROR(MATCH(Предмет_договора,F$1:F48,))/(КОСГУ=F$1),Предмет_договора),)","v":0},{"$f":"IFERROR(LOOKUP(,-1/ISERROR(MATCH(Предмет_договора,G$1:G48,))/(КОСГУ=G$1),Предмет_договора),)","v":0},{"$f":"IFERROR(LOOKUP(,-1/ISERROR(MATCH(Предмет_договора,H$1:H48,))/(КОСГУ=H$1),Предмет_договора),)","v":0},{"$f":"IFERROR(LOOKUP(,-1/ISERROR(MATCH(Предмет_договора,I$1:I48,))/(КОСГУ=I$1),Предмет_договора),)","v":0},{"$f":"IFERROR(LOOKUP(,-1/ISERROR(MATCH(Предмет_договора,J$1:J48,))/(КОСГУ=J$1),Предмет_договора),)","v":0}]
[null,{"$f":"IFERROR(LOOKUP(,-1/ISERROR(MATCH(Предмет_договора,B$1:B49,))/(КОСГУ=B$1),Предмет_договора),)","v":0},{"$f":"IFERROR(LOOKUP(,-1/ISERROR(MATCH(Предмет_договора,C$1:C49,))/(КОСГУ=C$1),Предмет_договора),)","v":0},{"$f":"IFERROR(LOOKUP(,-1/ISERROR(MATCH(Предмет_договора,D$1:D49,))/(КОСГУ=D$1),Предмет_договора),)","v":0},{"$f":"IFERROR(LOOKUP(,-1/ISERROR(MATCH(Предмет_договора,E$1:E49,))/(КОСГУ=E$1),Предмет_договора),)","v":0},{"$f":"IFERROR(LOOKUP(,-1/ISERROR(MATCH(Предмет_договора,F$1:F49,))/(КОСГУ=F$1),Предмет_договора),)","v":0},{"$f":"IFERROR(LOOKUP(,-1/ISERROR(MATCH(Предмет_договора,G$1:G49,))/(КОСГУ=G$1),Предмет_договора),)","v":0},{"$f":"IFERROR(LOOKUP(,-1/ISERROR(MATCH(Предмет_договора,H$1:H49,))/(КОСГУ=H$1),Предмет_договора),)","v":0},{"$f":"IFERROR(LOOKUP(,-1/ISERROR(MATCH(Предмет_договора,I$1:I49,))/(КОСГУ=I$1),Предмет_договора),)","v":0},{"$f":"IFERROR(LOOKUP(,-1/ISERROR(MATCH(Предмет_договора,J$1:J49,))/(КОСГУ=J$1),Предмет_договора),)","v":0}]
[null,{"$f":"IFERROR(LOOKUP(,-1/ISERROR(MATCH(Предмет_договора,B$1:B50,))/(КОСГУ=B$1),Предмет_договора),)","v":0},{"$f":"IFERROR(LOOKUP(,-1/ISERROR(MATCH(Предмет_договора,C$1:C50,))/(КОСГУ=C$1),Предмет_договора),)","v":0},{"$f":"IFERROR(LOOKUP(,-1/ISERROR(MATCH(Предмет_договора,D$1:D50,))/(КОСГУ=D$1),Предмет_договора),)","v":0},{"$f":"IFERROR(LOOKUP(,-1/ISERROR(MATCH(Предмет_договора,E$1:E50,))/(КОСГУ=E$1),Предмет_договора),)","v":0},{"$f":"IFERROR(LOOKUP(,-1/ISERROR(MATCH(Предмет_договора,F$1:F50,))/(КОСГУ=F$1),Предмет_договора),)","v":0},{"$f":"IFERROR(LOOKUP(,-1/ISERROR(MATCH(Предмет_договора,G$1:G50,))/(КОСГУ=G$1),Предмет_договора),)","v":0},{"$f":"IFERROR(LOOKUP(,-1/ISERROR(MATCH(Предмет_договора,H$1:H50,))/(КОСГУ=H$1),Предмет_договора),)","v":0},{"$f":"IFERROR(LOOKUP(,-1/ISERROR(MATCH(Предмет_договора,I$1:I50,))/(КОСГУ=I$1),Предмет_договора),)","v":0},{"$f":"IFERROR(LOOKUP(,-1/ISERROR(MATCH(Предмет_договора,J$1:J50,))/(КОСГУ=J$1),Предмет_договора),)","v":0}]
[null,{"$f":"IFERROR(LOOKUP(,-1/ISERROR(MATCH(Предмет_договора,B$1:B51,))/(КОСГУ=B$1),Предмет_договора),)","v":0},{"$f":"IFERROR(LOOKUP(,-1/ISERROR(MATCH(Предмет_договора,C$1:C51,))/(КОСГУ=C$1),Предмет_договора),)","v":0},{"$f":"IFERROR(LOOKUP(,-1/ISERROR(MATCH(Предмет_договора,D$1:D51,))/(КОСГУ=D$1),Предмет_договора),)","v":0},{"$f":"IFERROR(LOOKUP(,-1/ISERROR(MATCH(Предмет_договора,E$1:E51,))/(КОСГУ=E$1),Предмет_договора),)","v":0},{"$f":"IFERROR(LOOKUP(,-1/ISERROR(MATCH(Предмет_договора,F$1:F51,))/(КОСГУ=F$1),Предмет_договора),)","v":0},{"$f":"IFERROR(LOOKUP(,-1/ISERROR(MATCH(Предмет_договора,G$1:G51,))/(КОСГУ=G$1),Предмет_договора),)","v":0},{"$f":"IFERROR(LOOKUP(,-1/ISERROR(MATCH(Предмет_договора,H$1:H51,))/(КОСГУ=H$1),Предмет_договора),)","v":0},{"$f":"IFERROR(LOOKUP(,-1/ISERROR(MATCH(Предмет_договора,I$1:I51,))/(КОСГУ=I$1),Предмет_договора),)","v":0},{"$f":"IFERROR(LOOKUP(,-1/ISERROR(MATCH(Предмет_договора,J$1:J51,))/(КОСГУ=J$1),Предмет_договора),)","v":0}]
[null,{"$f":"IFERROR(LOOKUP(,-1/ISERROR(MATCH(Предмет_договора,B$1:B52,))/(КОСГУ=B$1),Предмет_договора),)","v":0},{"$f":"IFERROR(LOOKUP(,-1/ISERROR(MATCH(Предмет_договора,C$1:C52,))/(КОСГУ=C$1),Предмет_договора),)","v":0},{"$f":"IFERROR(LOOKUP(,-1/ISERROR(MATCH(Предмет_договора,D$1:D52,))/(КОСГУ=D$1),Предмет_договора),)","v":0},{"$f":"IFERROR(LOOKUP(,-1/ISERROR(MATCH(Предмет_договора,E$1:E52,))/(КОСГУ=E$1),Предмет_договора),)","v":0},{"$f":"IFERROR(LOOKUP(,-1/ISERROR(MATCH(Предмет_договора,F$1:F52,))/(КОСГУ=F$1),Предмет_договора),)","v":0},{"$f":"IFERROR(LOOKUP(,-1/ISERROR(MATCH(Предмет_договора,G$1:G52,))/(КОСГУ=G$1),Предмет_договора),)","v":0},{"$f":"IFERROR(LOOKUP(,-1/ISERROR(MATCH(Предмет_договора,H$1:H52,))/(КОСГУ=H$1),Предмет_договора),)","v":0},{"$f":"IFERROR(LOOKUP(,-1/ISERROR(MATCH(Предмет_договора,I$1:I52,))/(КОСГУ=I$1),Предмет_договора),)","v":0},{"$f":"IFERROR(LOOKUP(,-1/ISERROR(MATCH(Предмет_договора,J$1:J52,))/(КОСГУ=J$1),Предмет_договора),)","v":0}]
[null,{"$f":"IFERROR(LOOKUP(,-1/ISERROR(MATCH(Предмет_договора,B$1:B53,))/(КОСГУ=B$1),Предмет_договора),)","v":0},{"$f":"IFERROR(LOOKUP(,-1/ISERROR(MATCH(Предмет_договора,C$1:C53,))/(КОСГУ=C$1),Предмет_договора),)","v":0},{"$f":"IFERROR(LOOKUP(,-1/ISERROR(MATCH(Предмет_договора,D$1:D53,))/(КОСГУ=D$1),Предмет_договора),)","v":0},{"$f":"IFERROR(LOOKUP(,-1/ISERROR(MATCH(Предмет_договора,E$1:E53,))/(КОСГУ=E$1),Предмет_договора),)","v":0},{"$f":"IFERROR(LOOKUP(,-1/ISERROR(MATCH(Предмет_договора,F$1:F53,))/(КОСГУ=F$1),Предмет_договора),)","v":0},{"$f":"IFERROR(LOOKUP(,-1/ISERROR(MATCH(Предмет_договора,G$1:G53,))/(КОСГУ=G$1),Предмет_договора),)","v":0},{"$f":"IFERROR(LOOKUP(,-1/ISERROR(MATCH(Предмет_договора,H$1:H53,))/(КОСГУ=H$1),Предмет_договора),)","v":0},{"$f":"IFERROR(LOOKUP(,-1/ISERROR(MATCH(Предмет_договора,I$1:I53,))/(КОСГУ=I$1),Предмет_договора),)","v":0},{"$f":"IFERROR(LOOKUP(,-1/ISERROR(MATCH(Предмет_договора,J$1:J53,))/(КОСГУ=J$1),Предмет_договора),)","v":0}]
[null,{"$f":"IFERROR(LOOKUP(,-1/ISERROR(MATCH(Предмет_договора,B$1:B54,))/(КОСГУ=B$1),Предмет_договора),)","v":0},{"$f":"IFERROR(LOOKUP(,-1/ISERROR(MATCH(Предмет_договора,C$1:C54,))/(КОСГУ=C$1),Предмет_договора),)","v":0},{"$f":"IFERROR(LOOKUP(,-1/ISERROR(MATCH(Предмет_договора,D$1:D54,))/(КОСГУ=D$1),Предмет_договора),)","v":0},{"$f":"IFERROR(LOOKUP(,-1/ISERROR(MATCH(Предмет_договора,E$1:E54,))/(КОСГУ=E$1),Предмет_договора),)","v":0},{"$f":"IFERROR(LOOKUP(,-1/ISERROR(MATCH(Предмет_договора,F$1:F54,))/(КОСГУ=F$1),Предмет_договора),)","v":0},{"$f":"IFERROR(LOOKUP(,-1/ISERROR(MATCH(Предмет_договора,G$1:G54,))/(КОСГУ=G$1),Предмет_договора),)","v":0},{"$f":"IFERROR(LOOKUP(,-1/ISERROR(MATCH(Предмет_договора,H$1:H54,))/(КОСГУ=H$1),Предмет_договора),)","v":0},{"$f":"IFERROR(LOOKUP(,-1/ISERROR(MATCH(Предмет_договора,I$1:I54,))/(КОСГУ=I$1),Предмет_договора),)","v":0},{"$f":"IFERROR(LOOKUP(,-1/ISERROR(MATCH(Предмет_договора,J$1:J54,))/(КОСГУ=J$1),Предмет_договора),)","v":0}]
[null,{"$f":"IFERROR(LOOKUP(,-1/ISERROR(MATCH(Предмет_договора,B$1:B55,))/(КОСГУ=B$1),Предмет_договора),)","v":0},{"$f":"IFERROR(LOOKUP(,-1/ISERROR(MATCH(Предмет_договора,C$1:C55,))/(КОСГУ=C$1),Предмет_договора),)","v":0},{"$f":"IFERROR(LOOKUP(,-1/ISERROR(MATCH(Предмет_договора,D$1:D55,))/(КОСГУ=D$1),Предмет_договора),)","v":0},{"$f":"IFERROR(LOOKUP(,-1/ISERROR(MATCH(Предмет_договора,E$1:E55,))/(КОСГУ=E$1),Предмет_договора),)","v":0},{"$f":"IFERROR(LOOKUP(,-1/ISERROR(MATCH(Предмет_договора,F$1:F55,))/(КОСГУ=F$1),Предмет_договора),)","v":0},{"$f":"IFERROR(LOOKUP(,-1/ISERROR(MATCH(Предмет_договора,G$1:G55,))/(КОСГУ=G$1),Предмет_договора),)","v":0},{"$f":"IFERROR(LOOKUP(,-1/ISERROR(MATCH(Предмет_договора,H$1:H55,))/(КОСГУ=H$1),Предмет_договора),)","v":0},{"$f":"IFERROR(LOOKUP(,-1/ISERROR(MATCH(Предмет_договора,I$1:I55,))/(КОСГУ=I$1),Предмет_договора),)","v":0},{"$f":"IFERROR(LOOKUP(,-1/ISERROR(MATCH(Предмет_договора,J$1:J55,))/(КОСГУ=J$1),Предмет_договора),)","v":0}]
[null,{"$f":"IFERROR(LOOKUP(,-1/ISERROR(MATCH(Предмет_договора,B$1:B56,))/(КОСГУ=B$1),Предмет_договора),)","v":0},{"$f":"IFERROR(LOOKUP(,-1/ISERROR(MATCH(Предмет_договора,C$1:C56,))/(КОСГУ=C$1),Предмет_договора),)","v":0},{"$f":"IFERROR(LOOKUP(,-1/ISERROR(MATCH(Предмет_договора,D$1:D56,))/(КОСГУ=D$1),Предмет_договора),)","v":0},{"$f":"IFERROR(LOOKUP(,-1/ISERROR(MATCH(Предмет_договора,E$1:E56,))/(КОСГУ=E$1),Предмет_договора),)","v":0},{"$f":"IFERROR(LOOKUP(,-1/ISERROR(MATCH(Предмет_договора,F$1:F56,))/(КОСГУ=F$1),Предмет_договора),)","v":0},{"$f":"IFERROR(LOOKUP(,-1/ISERROR(MATCH(Предмет_договора,G$1:G56,))/(КОСГУ=G$1),Предмет_договора),)","v":0},{"$f":"IFERROR(LOOKUP(,-1/ISERROR(MATCH(Предмет_договора,H$1:H56,))/(КОСГУ=H$1),Предмет_договора),)","v":0},{"$f":"IFERROR(LOOKUP(,-1/ISERROR(MATCH(Предмет_договора,I$1:I56,))/(КОСГУ=I$1),Предмет_договора),)","v":0},{"$f":"IFERROR(LOOKUP(,-1/ISERROR(MATCH(Предмет_договора,J$1:J56,))/(КОСГУ=J$1),Предмет_договора),)","v":0}]
[null,{"$f":"IFERROR(LOOKUP(,-1/ISERROR(MATCH(Предмет_договора,B$1:B57,))/(КОСГУ=B$1),Предмет_договора),)","v":0},{"$f":"IFERROR(LOOKUP(,-1/ISERROR(MATCH(Предмет_договора,C$1:C57,))/(КОСГУ=C$1),Предмет_договора),)","v":0},{"$f":"IFERROR(LOOKUP(,-1/ISERROR(MATCH(Предмет_договора,D$1:D57,))/(КОСГУ=D$1),Предмет_договора),)","v":0},{"$f":"IFERROR(LOOKUP(,-1/ISERROR(MATCH(Предмет_договора,E$1:E57,))/(КОСГУ=E$1),Предмет_договора),)","v":0},{"$f":"IFERROR(LOOKUP(,-1/ISERROR(MATCH(Предмет_договора,F$1:F57,))/(КОСГУ=F$1),Предмет_договора),)","v":0},{"$f":"IFERROR(LOOKUP(,-1/ISERROR(MATCH(Предмет_договора,G$1:G57,))/(КОСГУ=G$1),Предмет_договора),)","v":0},{"$f":"IFERROR(LOOKUP(,-1/ISERROR(MATCH(Предмет_договора,H$1:H57,))/(КОСГУ=H$1),Предмет_договора),)","v":0},{"$f":"IFERROR(LOOKUP(,-1/ISERROR(MATCH(Предмет_договора,I$1:I57,))/(КОСГУ=I$1),Предмет_договора),)","v":0},{"$f":"IFERROR(LOOKUP(,-1/ISERROR(MATCH(Предмет_договора,J$1:J57,))/(КОСГУ=J$1),Предмет_договора),)","v":0}]
[null,{"$f":"IFERROR(LOOKUP(,-1/ISERROR(MATCH(Предмет_договора,B$1:B58,))/(КОСГУ=B$1),Предмет_договора),)","v":0},{"$f":"IFERROR(LOOKUP(,-1/ISERROR(MATCH(Предмет_договора,C$1:C58,))/(КОСГУ=C$1),Предмет_договора),)","v":0},{"$f":"IFERROR(LOOKUP(,-1/ISERROR(MATCH(Предмет_договора,D$1:D58,))/(КОСГУ=D$1),Предмет_договора),)","v":0},{"$f":"IFERROR(LOOKUP(,-1/ISERROR(MATCH(Предмет_договора,E$1:E58,))/(КОСГУ=E$1),Предмет_договора),)","v":0},{"$f":"IFERROR(LOOKUP(,-1/ISERROR(MATCH(Предмет_договора,F$1:F58,))/(КОСГУ=F$1),Предмет_договора),)","v":0},{"$f":"IFERROR(LOOKUP(,-1/ISERROR(MATCH(Предмет_договора,G$1:G58,))/(КОСГУ=G$1),Предмет_договора),)","v":0},{"$f":"IFERROR(LOOKUP(,-1/ISERROR(MATCH(Предмет_договора,H$1:H58,))/(КОСГУ=H$1),Предмет_договора),)","v":0},{"$f":"IFERROR(LOOKUP(,-1/ISERROR(MATCH(Предмет_договора,I$1:I58,))/(КОСГУ=I$1),Предмет_договора),)","v":0},{"$f":"IFERROR(LOOKUP(,-1/ISERROR(MATCH(Предмет_договора,J$1:J58,))/(КОСГУ=J$1),Предмет_договора),)","v":0}]
[null,{"$f":"IFERROR(LOOKUP(,-1/ISERROR(MATCH(Предмет_договора,B$1:B59,))/(КОСГУ=B$1),Предмет_договора),)","v":0},{"$f":"IFERROR(LOOKUP(,-1/ISERROR(MATCH(Предмет_договора,C$1:C59,))/(КОСГУ=C$1),Предмет_договора),)","v":0},{"$f":"IFERROR(LOOKUP(,-1/ISERROR(MATCH(Предмет_договора,D$1:D59,))/(КОСГУ=D$1),Предмет_договора),)","v":0},{"$f":"IFERROR(LOOKUP(,-1/ISERROR(MATCH(Предмет_договора,E$1:E59,))/(КОСГУ=E$1),Предмет_договора),)","v":0},{"$f":"IFERROR(LOOKUP(,-1/ISERROR(MATCH(Предмет_договора,F$1:F59,))/(КОСГУ=F$1),Предмет_договора),)","v":0},{"$f":"IFERROR(LOOKUP(,-1/ISERROR(MATCH(Предмет_договора,G$1:G59,))/(КОСГУ=G$1),Предмет_договора),)","v":0},{"$f":"IFERROR(LOOKUP(,-1/ISERROR(MATCH(Предмет_договора,H$1:H59,))/(КОСГУ=H$1),Предмет_договора),)","v":0},{"$f":"IFERROR(LOOKUP(,-1/ISERROR(MATCH(Предмет_договора,I$1:I59,))/(КОСГУ=I$1),Предмет_договора),)","v":0},{"$f":"IFERROR(LOOKUP(,-1/ISERROR(MATCH(Предмет_договора,J$1:J59,))/(КОСГУ=J$1),Предмет_договора),)","v":0}]
[null,{"$f":"IFERROR(LOOKUP(,-1/ISERROR(MATCH(Предмет_договора,B$1:B60,))/(КОСГУ=B$1),Предмет_договора),)","v":0},{"$f":"IFERROR(LOOKUP(,-1/ISERROR(MATCH(Предмет_договора,C$1:C60,))/(КОСГУ=C$1),Предмет_договора),)","v":0},{"$f":"IFERROR(LOOKUP(,-1/ISERROR(MATCH(Предмет_договора,D$1:D60,))/(КОСГУ=D$1),Предмет_договора),)","v":0},{"$f":"IFERROR(LOOKUP(,-1/ISERROR(MATCH(Предмет_договора,E$1:E60,))/(КОСГУ=E$1),Предмет_договора),)","v":0},{"$f":"IFERROR(LOOKUP(,-1/ISERROR(MATCH(Предмет_договора,F$1:F60,))/(КОСГУ=F$1),Предмет_договора),)","v":0},{"$f":"IFERROR(LOOKUP(,-1/ISERROR(MATCH(Предмет_договора,G$1:G60,))/(КОСГУ=G$1),Предмет_договора),)","v":0},{"$f":"IFERROR(LOOKUP(,-1/ISERROR(MATCH(Предмет_договора,H$1:H60,))/(КОСГУ=H$1),Предмет_договора),)","v":0},{"$f":"IFERROR(LOOKUP(,-1/ISERROR(MATCH(Предмет_договора,I$1:I60,))/(КОСГУ=I$1),Предмет_договора),)","v":0},{"$f":"IFERROR(LOOKUP(,-1/ISERROR(MATCH(Предмет_договора,J$1:J60,))/(КОСГУ=J$1),Предмет_договора),)","v":0}]
[null,{"$f":"IFERROR(LOOKUP(,-1/ISERROR(MATCH(Предмет_договора,B$1:B61,))/(КОСГУ=B$1),Предмет_договора),)","v":0},{"$f":"IFERROR(LOOKUP(,-1/ISERROR(MATCH(Предмет_договора,C$1:C61,))/(КОСГУ=C$1),Предмет_договора),)","v":0},{"$f":"IFERROR(LOOKUP(,-1/ISERROR(MATCH(Предмет_договора,D$1:D61,))/(КОСГУ=D$1),Предмет_договора),)","v":0},{"$f":"IFERROR(LOOKUP(,-1/ISERROR(MATCH(Предмет_договора,E$1:E61,))/(КОСГУ=E$1),Предмет_договора),)","v":0},{"$f":"IFERROR(LOOKUP(,-1/ISERROR(MATCH(Предмет_договора,F$1:F61,))/(КОСГУ=F$1),Предмет_договора),)","v":0},{"$f":"IFERROR(LOOKUP(,-1/ISERROR(MATCH(Предмет_договора,G$1:G61,))/(КОСГУ=G$1),Предмет_договора),)","v":0},{"$f":"IFERROR(LOOKUP(,-1/ISERROR(MATCH(Предмет_договора,H$1:H61,))/(КОСГУ=H$1),Предмет_договора),)","v":0},{"$f":"IFERROR(LOOKUP(,-1/ISERROR(MATCH(Предмет_договора,I$1:I61,))/(КОСГУ=I$1),Предмет_договора),)","v":0},{"$f":"IFERROR(LOOKUP(,-1/ISERROR(MATCH(Предмет_договора,J$1:J61,))/(КОСГУ=J$1),Предмет_договора),)","v":0}]
[null,{"$f":"IFERROR(LOOKUP(,-1/ISERROR(MATCH(Предмет_договора,B$1:B62,))/(КОСГУ=B$1),Предмет_договора),)","v":0},{"$f":"IFERROR(LOOKUP(,-1/ISERROR(MATCH(Предмет_договора,C$1:C62,))/(КОСГУ=C$1),Предмет_договора),)","v":0},{"$f":"IFERROR(LOOKUP(,-1/ISERROR(MATCH(Предмет_договора,D$1:D62,))/(КОСГУ=D$1),Предмет_договора),)","v":0},{"$f":"IFERROR(LOOKUP(,-1/ISERROR(MATCH(Предмет_договора,E$1:E62,))/(КОСГУ=E$1),Предмет_договора),)","v":0},{"$f":"IFERROR(LOOKUP(,-1/ISERROR(MATCH(Предмет_договора,F$1:F62,))/(КОСГУ=F$1),Предмет_договора),)","v":0},{"$f":"IFERROR(LOOKUP(,-1/ISERROR(MATCH(Предмет_договора,G$1:G62,))/(КОСГУ=G$1),Предмет_договора),)","v":0},{"$f":"IFERROR(LOOKUP(,-1/ISERROR(MATCH(Предмет_договора,H$1:H62,))/(КОСГУ=H$1),Предмет_договора),)","v":0},{"$f":"IFERROR(LOOKUP(,-1/ISERROR(MATCH(Предмет_договора,I$1:I62,))/(КОСГУ=I$1),Предмет_договора),)","v":0},{"$f":"IFERROR(LOOKUP(,-1/ISERROR(MATCH(Предмет_договора,J$1:J62,))/(КОСГУ=J$1),Предмет_договора),)","v":0}]
[null,{"$f":"IFERROR(LOOKUP(,-1/ISERROR(MATCH(Предмет_договора,B$1:B63,))/(КОСГУ=B$1),Предмет_договора),)","v":0},{"$f":"IFERROR(LOOKUP(,-1/ISERROR(MATCH(Предмет_договора,C$1:C63,))/(КОСГУ=C$1),Предмет_договора),)","v":0},{"$f":"IFERROR(LOOKUP(,-1/ISERROR(MATCH(Предмет_договора,D$1:D63,))/(КОСГУ=D$1),Предмет_договора),)","v":0},{"$f":"IFERROR(LOOKUP(,-1/ISERROR(MATCH(Предмет_договора,E$1:E63,))/(КОСГУ=E$1),Предмет_договора),)","v":0},{"$f":"IFERROR(LOOKUP(,-1/ISERROR(MATCH(Предмет_договора,F$1:F63,))/(КОСГУ=F$1),Предмет_договора),)","v":0},{"$f":"IFERROR(LOOKUP(,-1/ISERROR(MATCH(Предмет_договора,G$1:G63,))/(КОСГУ=G$1),Предмет_договора),)","v":0},{"$f":"IFERROR(LOOKUP(,-1/ISERROR(MATCH(Предмет_договора,H$1:H63,))/(КОСГУ=H$1),Предмет_договора),)","v":0},{"$f":"IFERROR(LOOKUP(,-1/ISERROR(MATCH(Предмет_договора,I$1:I63,))/(КОСГУ=I$1),Предмет_договора),)","v":0},{"$f":"IFERROR(LOOKUP(,-1/ISERROR(MATCH(Предмет_договора,J$1:J63,))/(КОСГУ=J$1),Предмет_договора),)","v":0}]
[null,{"$f":"IFERROR(LOOKUP(,-1/ISERROR(MATCH(Предмет_договора,B$1:B64,))/(КОСГУ=B$1),Предмет_договора),)","v":0},{"$f":"IFERROR(LOOKUP(,-1/ISERROR(MATCH(Предмет_договора,C$1:C64,))/(КОСГУ=C$1),Предмет_договора),)","v":0},{"$f":"IFERROR(LOOKUP(,-1/ISERROR(MATCH(Предмет_договора,D$1:D64,))/(КОСГУ=D$1),Предмет_договора),)","v":0},{"$f":"IFERROR(LOOKUP(,-1/ISERROR(MATCH(Предмет_договора,E$1:E64,))/(КОСГУ=E$1),Предмет_договора),)","v":0},{"$f":"IFERROR(LOOKUP(,-1/ISERROR(MATCH(Предмет_договора,F$1:F64,))/(КОСГУ=F$1),Предмет_договора),)","v":0},{"$f":"IFERROR(LOOKUP(,-1/ISERROR(MATCH(Предмет_договора,G$1:G64,))/(КОСГУ=G$1),Предмет_договора),)","v":0},{"$f":"IFERROR(LOOKUP(,-1/ISERROR(MATCH(Предмет_договора,H$1:H64,))/(КОСГУ=H$1),Предмет_договора),)","v":0},{"$f":"IFERROR(LOOKUP(,-1/ISERROR(MATCH(Предмет_договора,I$1:I64,))/(КОСГУ=I$1),Предмет_договора),)","v":0},{"$f":"IFERROR(LOOKUP(,-1/ISERROR(MATCH(Предмет_договора,J$1:J64,))/(КОСГУ=J$1),Предмет_договора),)","v":0}]
[null,{"$f":"IFERROR(LOOKUP(,-1/ISERROR(MATCH(Предмет_договора,B$1:B65,))/(КОСГУ=B$1),Предмет_договора),)","v":0},{"$f":"IFERROR(LOOKUP(,-1/ISERROR(MATCH(Предмет_договора,C$1:C65,))/(КОСГУ=C$1),Предмет_договора),)","v":0},{"$f":"IFERROR(LOOKUP(,-1/ISERROR(MATCH(Предмет_договора,D$1:D65,))/(КОСГУ=D$1),Предмет_договора),)","v":0},{"$f":"IFERROR(LOOKUP(,-1/ISERROR(MATCH(Предмет_договора,E$1:E65,))/(КОСГУ=E$1),Предмет_договора),)","v":0},{"$f":"IFERROR(LOOKUP(,-1/ISERROR(MATCH(Предмет_договора,F$1:F65,))/(КОСГУ=F$1),Предмет_договора),)","v":0},{"$f":"IFERROR(LOOKUP(,-1/ISERROR(MATCH(Предмет_договора,G$1:G65,))/(КОСГУ=G$1),Предмет_договора),)","v":0},{"$f":"IFERROR(LOOKUP(,-1/ISERROR(MATCH(Предмет_договора,H$1:H65,))/(КОСГУ=H$1),Предмет_договора),)","v":0},{"$f":"IFERROR(LOOKUP(,-1/ISERROR(MATCH(Предмет_договора,I$1:I65,))/(КОСГУ=I$1),Предмет_договора),)","v":0},{"$f":"IFERROR(LOOKUP(,-1/ISERROR(MATCH(Предмет_договора,J$1:J65,))/(КОСГУ=J$1),Предмет_договора),)","v":0}]
[null,{"$f":"IFERROR(LOOKUP(,-1/ISERROR(MATCH(Предмет_договора,B$1:B66,))/(КОСГУ=B$1),Предмет_договора),)","v":0},{"$f":"IFERROR(LOOKUP(,-1/ISERROR(MATCH(Предмет_договора,C$1:C66,))/(КОСГУ=C$1),Предмет_договора),)","v":0},{"$f":"IFERROR(LOOKUP(,-1/ISERROR(MATCH(Предмет_договора,D$1:D66,))/(КОСГУ=D$1),Предмет_договора),)","v":0},{"$f":"IFERROR(LOOKUP(,-1/ISERROR(MATCH(Предмет_договора,E$1:E66,))/(КОСГУ=E$1),Предмет_договора),)","v":0},{"$f":"IFERROR(LOOKUP(,-1/ISERROR(MATCH(Предмет_договора,F$1:F66,))/(КОСГУ=F$1),Предмет_договора),)","v":0},{"$f":"IFERROR(LOOKUP(,-1/ISERROR(MATCH(Предмет_договора,G$1:G66,))/(КОСГУ=G$1),Предмет_договора),)","v":0},{"$f":"IFERROR(LOOKUP(,-1/ISERROR(MATCH(Предмет_договора,H$1:H66,))/(КОСГУ=H$1),Предмет_договора),)","v":0},{"$f":"IFERROR(LOOKUP(,-1/ISERROR(MATCH(Предмет_договора,I$1:I66,))/(КОСГУ=I$1),Предмет_договора),)","v":0},{"$f":"IFERROR(LOOKUP(,-1/ISERROR(MATCH(Предмет_договора,J$1:J66,))/(КОСГУ=J$1),Предмет_договора),)","v":0}]
[null,{"$f":"IFERROR(LOOKUP(,-1/ISERROR(MATCH(Предмет_договора,B$1:B67,))/(КОСГУ=B$1),Предмет_договора),)","v":0},{"$f":"IFERROR(LOOKUP(,-1/ISERROR(MATCH(Предмет_договора,C$1:C67,))/(КОСГУ=C$1),Предмет_договора),)","v":0},{"$f":"IFERROR(LOOKUP(,-1/ISERROR(MATCH(Предмет_договора,D$1:D67,))/(КОСГУ=D$1),Предмет_договора),)","v":0},{"$f":"IFERROR(LOOKUP(,-1/ISERROR(MATCH(Предмет_договора,E$1:E67,))/(КОСГУ=E$1),Предмет_договора),)","v":0},{"$f":"IFERROR(LOOKUP(,-1/ISERROR(MATCH(Предмет_договора,F$1:F67,))/(КОСГУ=F$1),Предмет_договора),)","v":0},{"$f":"IFERROR(LOOKUP(,-1/ISERROR(MATCH(Предмет_договора,G$1:G67,))/(КОСГУ=G$1),Предмет_договора),)","v":0},{"$f":"IFERROR(LOOKUP(,-1/ISERROR(MATCH(Предмет_договора,H$1:H67,))/(КОСГУ=H$1),Предмет_договора),)","v":0},{"$f":"IFERROR(LOOKUP(,-1/ISERROR(MATCH(Предмет_договора,I$1:I67,))/(КОСГУ=I$1),Предмет_договора),)","v":0},{"$f":"IFERROR(LOOKUP(,-1/ISERROR(MATCH(Предмет_договора,J$1:J67,))/(КОСГУ=J$1),Предмет_договора),)","v":0}]
[null,{"$f":"IFERROR(LOOKUP(,-1/ISERROR(MATCH(Предмет_договора,B$1:B68,))/(КОСГУ=B$1),Предмет_договора),)","v":0},{"$f":"IFERROR(LOOKUP(,-1/ISERROR(MATCH(Предмет_договора,C$1:C68,))/(КОСГУ=C$1),Предмет_договора),)","v":0},{"$f":"IFERROR(LOOKUP(,-1/ISERROR(MATCH(Предмет_договора,D$1:D68,))/(КОСГУ=D$1),Предмет_договора),)","v":0},{"$f":"IFERROR(LOOKUP(,-1/ISERROR(MATCH(Предмет_договора,E$1:E68,))/(КОСГУ=E$1),Предмет_договора),)","v":0},{"$f":"IFERROR(LOOKUP(,-1/ISERROR(MATCH(Предмет_договора,F$1:F68,))/(КОСГУ=F$1),Предмет_договора),)","v":0},{"$f":"IFERROR(LOOKUP(,-1/ISERROR(MATCH(Предмет_договора,G$1:G68,))/(КОСГУ=G$1),Предмет_договора),)","v":0},{"$f":"IFERROR(LOOKUP(,-1/ISERROR(MATCH(Предмет_договора,H$1:H68,))/(КОСГУ=H$1),Предмет_договора),)","v":0},{"$f":"IFERROR(LOOKUP(,-1/ISERROR(MATCH(Предмет_договора,I$1:I68,))/(КОСГУ=I$1),Предмет_договора),)","v":0},{"$f":"IFERROR(LOOKUP(,-1/ISERROR(MATCH(Предмет_договора,J$1:J68,))/(КОСГУ=J$1),Предмет_договора),)","v":0}]
[null,{"$f":"IFERROR(LOOKUP(,-1/ISERROR(MATCH(Предмет_договора,B$1:B69,))/(КОСГУ=B$1),Предмет_договора),)","v":0},{"$f":"IFERROR(LOOKUP(,-1/ISERROR(MATCH(Предмет_договора,C$1:C69,))/(КОСГУ=C$1),Предмет_договора),)","v":0},{"$f":"IFERROR(LOOKUP(,-1/ISERROR(MATCH(Предмет_договора,D$1:D69,))/(КОСГУ=D$1),Предмет_договора),)","v":0},{"$f":"IFERROR(LOOKUP(,-1/ISERROR(MATCH(Предмет_договора,E$1:E69,))/(КОСГУ=E$1),Предмет_договора),)","v":0},{"$f":"IFERROR(LOOKUP(,-1/ISERROR(MATCH(Предмет_договора,F$1:F69,))/(КОСГУ=F$1),Предмет_договора),)","v":0},{"$f":"IFERROR(LOOKUP(,-1/ISERROR(MATCH(Предмет_договора,G$1:G69,))/(КОСГУ=G$1),Предмет_договора),)","v":0},{"$f":"IFERROR(LOOKUP(,-1/ISERROR(MATCH(Предмет_договора,H$1:H69,))/(КОСГУ=H$1),Предмет_договора),)","v":0},{"$f":"IFERROR(LOOKUP(,-1/ISERROR(MATCH(Предмет_договора,I$1:I69,))/(КОСГУ=I$1),Предмет_договора),)","v":0},{"$f":"IFERROR(LOOKUP(,-1/ISERROR(MATCH(Предмет_договора,J$1:J69,))/(КОСГУ=J$1),Предмет_договора),)","v":0}]
[null,{"$f":"IFERROR(LOOKUP(,-1/ISERROR(MATCH(Предмет_договора,B$1:B70,))/(КОСГУ=B$1),Предмет_договора),)","v":0},{"$f":"IFERROR(LOOKUP(,-1/ISERROR(MATCH(Предмет_договора,C$1:C70,))/(КОСГУ=C$1),Предмет_договора),)","v":0},{"$f":"IFERROR(LOOKUP(,-1/ISERROR(MATCH(Предмет_договора,D$1:D70,))/(КОСГУ=D$1),Предмет_договора),)","v":0},{"$f":"IFERROR(LOOKUP(,-1/ISERROR(MATCH(Предмет_договора,E$1:E70,))/(КОСГУ=E$1),Предмет_договора),)","v":0},{"$f":"IFERROR(LOOKUP(,-1/ISERROR(MATCH(Предмет_договора,F$1:F70,))/(КОСГУ=F$1),Предмет_договора),)","v":0},{"$f":"IFERROR(LOOKUP(,-1/ISERROR(MATCH(Предмет_договора,G$1:G70,))/(КОСГУ=G$1),Предмет_договора),)","v":0},{"$f":"IFERROR(LOOKUP(,-1/ISERROR(MATCH(Предмет_договора,H$1:H70,))/(КОСГУ=H$1),Предмет_договора),)","v":0},{"$f":"IFERROR(LOOKUP(,-1/ISERROR(MATCH(Предмет_договора,I$1:I70,))/(КОСГУ=I$1),Предмет_договора),)","v":0},{"$f":"IFERROR(LOOKUP(,-1/ISERROR(MATCH(Предмет_договора,J$1:J70,))/(КОСГУ=J$1),Предмет_договора),)","v":0}]
[null,{"$f":"IFERROR(LOOKUP(,-1/ISERROR(MATCH(Предмет_договора,B$1:B71,))/(КОСГУ=B$1),Предмет_договора),)","v":0},{"$f":"IFERROR(LOOKUP(,-1/ISERROR(MATCH(Предмет_договора,C$1:C71,))/(КОСГУ=C$1),Предмет_договора),)","v":0},{"$f":"IFERROR(LOOKUP(,-1/ISERROR(MATCH(Предмет_договора,D$1:D71,))/(КОСГУ=D$1),Предмет_договора),)","v":0},{"$f":"IFERROR(LOOKUP(,-1/ISERROR(MATCH(Предмет_договора,E$1:E71,))/(КОСГУ=E$1),Предмет_договора),)","v":0},{"$f":"IFERROR(LOOKUP(,-1/ISERROR(MATCH(Предмет_договора,F$1:F71,))/(КОСГУ=F$1),Предмет_договора),)","v":0},{"$f":"IFERROR(LOOKUP(,-1/ISERROR(MATCH(Предмет_договора,G$1:G71,))/(КОСГУ=G$1),Предмет_договора),)","v":0},{"$f":"IFERROR(LOOKUP(,-1/ISERROR(MATCH(Предмет_договора,H$1:H71,))/(КОСГУ=H$1),Предмет_договора),)","v":0},{"$f":"IFERROR(LOOKUP(,-1/ISERROR(MATCH(Предмет_договора,I$1:I71,))/(КОСГУ=I$1),Предмет_договора),)","v":0},{"$f":"IFERROR(LOOKUP(,-1/ISERROR(MATCH(Предмет_договора,J$1:J71,))/(КОСГУ=J$1),Предмет_договора),)","v":0}]
[null,{"$f":"IFERROR(LOOKUP(,-1/ISERROR(MATCH(Предмет_договора,B$1:B72,))/(КОСГУ=B$1),Предмет_договора),)","v":0},{"$f":"IFERROR(LOOKUP(,-1/ISERROR(MATCH(Предмет_договора,C$1:C72,))/(КОСГУ=C$1),Предмет_договора),)","v":0},{"$f":"IFERROR(LOOKUP(,-1/ISERROR(MATCH(Предмет_договора,D$1:D72,))/(КОСГУ=D$1),Предмет_договора),)","v":0},{"$f":"IFERROR(LOOKUP(,-1/ISERROR(MATCH(Предмет_договора,E$1:E72,))/(КОСГУ=E$1),Предмет_договора),)","v":0},{"$f":"IFERROR(LOOKUP(,-1/ISERROR(MATCH(Предмет_договора,F$1:F72,))/(КОСГУ=F$1),Предмет_договора),)","v":0},{"$f":"IFERROR(LOOKUP(,-1/ISERROR(MATCH(Предмет_договора,G$1:G72,))/(КОСГУ=G$1),Предмет_договора),)","v":0},{"$f":"IFERROR(LOOKUP(,-1/ISERROR(MATCH(Предмет_договора,H$1:H72,))/(КОСГУ=H$1),Предмет_договора),)","v":0},{"$f":"IFERROR(LOOKUP(,-1/ISERROR(MATCH(Предмет_договора,I$1:I72,))/(КОСГУ=I$1),Предмет_договора),)","v":0},{"$f":"IFERROR(LOOKUP(,-1/ISERROR(MATCH(Предмет_договора,J$1:J72,))/(КОСГУ=J$1),Предмет_договора),)","v":0}]
[null,{"$f":"IFERROR(LOOKUP(,-1/ISERROR(MATCH(Предмет_договора,B$1:B73,))/(КОСГУ=B$1),Предмет_договора),)","v":0},{"$f":"IFERROR(LOOKUP(,-1/ISERROR(MATCH(Предмет_договора,C$1:C73,))/(КОСГУ=C$1),Предмет_договора),)","v":0},{"$f":"IFERROR(LOOKUP(,-1/ISERROR(MATCH(Предмет_договора,D$1:D73,))/(КОСГУ=D$1),Предмет_договора),)","v":0},{"$f":"IFERROR(LOOKUP(,-1/ISERROR(MATCH(Предмет_договора,E$1:E73,))/(КОСГУ=E$1),Предмет_договора),)","v":0},{"$f":"IFERROR(LOOKUP(,-1/ISERROR(MATCH(Предмет_договора,F$1:F73,))/(КОСГУ=F$1),Предмет_договора),)","v":0},{"$f":"IFERROR(LOOKUP(,-1/ISERROR(MATCH(Предмет_договора,G$1:G73,))/(КОСГУ=G$1),Предмет_договора),)","v":0},{"$f":"IFERROR(LOOKUP(,-1/ISERROR(MATCH(Предмет_договора,H$1:H73,))/(КОСГУ=H$1),Предмет_договора),)","v":0},{"$f":"IFERROR(LOOKUP(,-1/ISERROR(MATCH(Предмет_договора,I$1:I73,))/(КОСГУ=I$1),Предмет_договора),)","v":0},{"$f":"IFERROR(LOOKUP(,-1/ISERROR(MATCH(Предмет_договора,J$1:J73,))/(КОСГУ=J$1),Предмет_договора),)","v":0}]
[null,{"$f":"IFERROR(LOOKUP(,-1/ISERROR(MATCH(Предмет_договора,B$1:B74,))/(КОСГУ=B$1),Предмет_договора),)","v":0},{"$f":"IFERROR(LOOKUP(,-1/ISERROR(MATCH(Предмет_договора,C$1:C74,))/(КОСГУ=C$1),Предмет_договора),)","v":0},{"$f":"IFERROR(LOOKUP(,-1/ISERROR(MATCH(Предмет_договора,D$1:D74,))/(КОСГУ=D$1),Предмет_договора),)","v":0},{"$f":"IFERROR(LOOKUP(,-1/ISERROR(MATCH(Предмет_договора,E$1:E74,))/(КОСГУ=E$1),Предмет_договора),)","v":0},{"$f":"IFERROR(LOOKUP(,-1/ISERROR(MATCH(Предмет_договора,F$1:F74,))/(КОСГУ=F$1),Предмет_договора),)","v":0},{"$f":"IFERROR(LOOKUP(,-1/ISERROR(MATCH(Предмет_договора,G$1:G74,))/(КОСГУ=G$1),Предмет_договора),)","v":0},{"$f":"IFERROR(LOOKUP(,-1/ISERROR(MATCH(Предмет_договора,H$1:H74,))/(КОСГУ=H$1),Предмет_договора),)","v":0},{"$f":"IFERROR(LOOKUP(,-1/ISERROR(MATCH(Предмет_договора,I$1:I74,))/(КОСГУ=I$1),Предмет_договора),)","v":0},{"$f":"IFERROR(LOOKUP(,-1/ISERROR(MATCH(Предмет_договора,J$1:J74,))/(КОСГУ=J$1),Предмет_договора),)","v":0}]
[null,{"$f":"IFERROR(LOOKUP(,-1/ISERROR(MATCH(Предмет_договора,B$1:B75,))/(КОСГУ=B$1),Предмет_договора),)","v":0},{"$f":"IFERROR(LOOKUP(,-1/ISERROR(MATCH(Предмет_договора,C$1:C75,))/(КОСГУ=C$1),Предмет_договора),)","v":0},{"$f":"IFERROR(LOOKUP(,-1/ISERROR(MATCH(Предмет_договора,D$1:D75,))/(КОСГУ=D$1),Предмет_договора),)","v":0},{"$f":"IFERROR(LOOKUP(,-1/ISERROR(MATCH(Предмет_договора,E$1:E75,))/(КОСГУ=E$1),Предмет_договора),)","v":0},{"$f":"IFERROR(LOOKUP(,-1/ISERROR(MATCH(Предмет_договора,F$1:F75,))/(КОСГУ=F$1),Предмет_договора),)","v":0},{"$f":"IFERROR(LOOKUP(,-1/ISERROR(MATCH(Предмет_договора,G$1:G75,))/(КОСГУ=G$1),Предмет_договора),)","v":0},{"$f":"IFERROR(LOOKUP(,-1/ISERROR(MATCH(Предмет_договора,H$1:H75,))/(КОСГУ=H$1),Предмет_договора),)","v":0},{"$f":"IFERROR(LOOKUP(,-1/ISERROR(MATCH(Предмет_договора,I$1:I75,))/(КОСГУ=I$1),Предмет_договора),)","v":0},{"$f":"IFERROR(LOOKUP(,-1/ISERROR(MATCH(Предмет_договора,J$1:J75,))/(КОСГУ=J$1),Предмет_договора),)","v":0}]
[null,{"$f":"IFERROR(LOOKUP(,-1/ISERROR(MATCH(Предмет_договора,B$1:B76,))/(КОСГУ=B$1),Предмет_договора),)","v":0},{"$f":"IFERROR(LOOKUP(,-1/ISERROR(MATCH(Предмет_договора,C$1:C76,))/(КОСГУ=C$1),Предмет_договора),)","v":0},{"$f":"IFERROR(LOOKUP(,-1/ISERROR(MATCH(Предмет_договора,D$1:D76,))/(КОСГУ=D$1),Предмет_договора),)","v":0},{"$f":"IFERROR(LOOKUP(,-1/ISERROR(MATCH(Предмет_договора,E$1:E76,))/(КОСГУ=E$1),Предмет_договора),)","v":0},{"$f":"IFERROR(LOOKUP(,-1/ISERROR(MATCH(Предмет_договора,F$1:F76,))/(КОСГУ=F$1),Предмет_договора),)","v":0},{"$f":"IFERROR(LOOKUP(,-1/ISERROR(MATCH(Предмет_договора,G$1:G76,))/(КОСГУ=G$1),Предмет_договора),)","v":0},{"$f":"IFERROR(LOOKUP(,-1/ISERROR(MATCH(Предмет_договора,H$1:H76,))/(КОСГУ=H$1),Предмет_договора),)","v":0},{"$f":"IFERROR(LOOKUP(,-1/ISERROR(MATCH(Предмет_договора,I$1:I76,))/(КОСГУ=I$1),Предмет_договора),)","v":0},{"$f":"IFERROR(LOOKUP(,-1/ISERROR(MATCH(Предмет_договора,J$1:J76,))/(КОСГУ=J$1),Предмет_договора),)","v":0}]
[null,{"$f":"IFERROR(LOOKUP(,-1/ISERROR(MATCH(Предмет_договора,B$1:B77,))/(КОСГУ=B$1),Предмет_договора),)","v":0},{"$f":"IFERROR(LOOKUP(,-1/ISERROR(MATCH(Предмет_договора,C$1:C77,))/(КОСГУ=C$1),Предмет_договора),)","v":0},{"$f":"IFERROR(LOOKUP(,-1/ISERROR(MATCH(Предмет_договора,D$1:D77,))/(КОСГУ=D$1),Предмет_договора),)","v":0},{"$f":"IFERROR(LOOKUP(,-1/ISERROR(MATCH(Предмет_договора,E$1:E77,))/(КОСГУ=E$1),Предмет_договора),)","v":0},{"$f":"IFERROR(LOOKUP(,-1/ISERROR(MATCH(Предмет_договора,F$1:F77,))/(КОСГУ=F$1),Предмет_договора),)","v":0},{"$f":"IFERROR(LOOKUP(,-1/ISERROR(MATCH(Предмет_договора,G$1:G77,))/(КОСГУ=G$1),Предмет_договора),)","v":0},{"$f":"IFERROR(LOOKUP(,-1/ISERROR(MATCH(Предмет_договора,H$1:H77,))/(КОСГУ=H$1),Предмет_договора),)","v":0},{"$f":"IFERROR(LOOKUP(,-1/ISERROR(MATCH(Предмет_договора,I$1:I77,))/(КОСГУ=I$1),Предмет_договора),)","v":0},{"$f":"IFERROR(LOOKUP(,-1/ISERROR(MATCH(Предмет_договора,J$1:J77,))/(КОСГУ=J$1),Предмет_договора),)","v":0}]
[null,{"$f":"IFERROR(LOOKUP(,-1/ISERROR(MATCH(Предмет_договора,B$1:B78,))/(КОСГУ=B$1),Предмет_договора),)","v":0},{"$f":"IFERROR(LOOKUP(,-1/ISERROR(MATCH(Предмет_договора,C$1:C78,))/(КОСГУ=C$1),Предмет_договора),)","v":0},{"$f":"IFERROR(LOOKUP(,-1/ISERROR(MATCH(Предмет_договора,D$1:D78,))/(КОСГУ=D$1),Предмет_договора),)","v":0},{"$f":"IFERROR(LOOKUP(,-1/ISERROR(MATCH(Предмет_договора,E$1:E78,))/(КОСГУ=E$1),Предмет_договора),)","v":0},{"$f":"IFERROR(LOOKUP(,-1/ISERROR(MATCH(Предмет_договора,F$1:F78,))/(КОСГУ=F$1),Предмет_договора),)","v":0},{"$f":"IFERROR(LOOKUP(,-1/ISERROR(MATCH(Предмет_договора,G$1:G78,))/(КОСГУ=G$1),Предмет_договора),)","v":0},{"$f":"IFERROR(LOOKUP(,-1/ISERROR(MATCH(Предмет_договора,H$1:H78,))/(КОСГУ=H$1),Предмет_договора),)","v":0},{"$f":"IFERROR(LOOKUP(,-1/ISERROR(MATCH(Предмет_договора,I$1:I78,))/(КОСГУ=I$1),Предмет_договора),)","v":0},{"$f":"IFERROR(LOOKUP(,-1/ISERROR(MATCH(Предмет_договора,J$1:J78,))/(КОСГУ=J$1),Предмет_договора),)","v":0}]
[null,{"$f":"IFERROR(LOOKUP(,-1/ISERROR(MATCH(Предмет_договора,B$1:B79,))/(КОСГУ=B$1),Предмет_договора),)","v":0},{"$f":"IFERROR(LOOKUP(,-1/ISERROR(MATCH(Предмет_договора,C$1:C79,))/(КОСГУ=C$1),Предмет_договора),)","v":0},{"$f":"IFERROR(LOOKUP(,-1/ISERROR(MATCH(Предмет_договора,D$1:D79,))/(КОСГУ=D$1),Предмет_договора),)","v":0},{"$f":"IFERROR(LOOKUP(,-1/ISERROR(MATCH(Предмет_договора,E$1:E79,))/(КОСГУ=E$1),Предмет_договора),)","v":0},{"$f":"IFERROR(LOOKUP(,-1/ISERROR(MATCH(Предмет_договора,F$1:F79,))/(КОСГУ=F$1),Предмет_договора),)","v":0},{"$f":"IFERROR(LOOKUP(,-1/ISERROR(MATCH(Предмет_договора,G$1:G79,))/(КОСГУ=G$1),Предмет_договора),)","v":0},{"$f":"IFERROR(LOOKUP(,-1/ISERROR(MATCH(Предмет_договора,H$1:H79,))/(КОСГУ=H$1),Предмет_договора),)","v":0},{"$f":"IFERROR(LOOKUP(,-1/ISERROR(MATCH(Предмет_договора,I$1:I79,))/(КОСГУ=I$1),Предмет_договора),)","v":0},{"$f":"IFERROR(LOOKUP(,-1/ISERROR(MATCH(Предмет_договора,J$1:J79,))/(КОСГУ=J$1),Предмет_договора),)","v":0}]
[null,{"$f":"IFERROR(LOOKUP(,-1/ISERROR(MATCH(Предмет_договора,B$1:B80,))/(КОСГУ=B$1),Предмет_договора),)","v":0},{"$f":"IFERROR(LOOKUP(,-1/ISERROR(MATCH(Предмет_договора,C$1:C80,))/(КОСГУ=C$1),Предмет_договора),)","v":0},{"$f":"IFERROR(LOOKUP(,-1/ISERROR(MATCH(Предмет_договора,D$1:D80,))/(КОСГУ=D$1),Предмет_договора),)","v":0},{"$f":"IFERROR(LOOKUP(,-1/ISERROR(MATCH(Предмет_договора,E$1:E80,))/(КОСГУ=E$1),Предмет_договора),)","v":0},{"$f":"IFERROR(LOOKUP(,-1/ISERROR(MATCH(Предмет_договора,F$1:F80,))/(КОСГУ=F$1),Предмет_договора),)","v":0},{"$f":"IFERROR(LOOKUP(,-1/ISERROR(MATCH(Предмет_договора,G$1:G80,))/(КОСГУ=G$1),Предмет_договора),)","v":0},{"$f":"IFERROR(LOOKUP(,-1/ISERROR(MATCH(Предмет_договора,H$1:H80,))/(КОСГУ=H$1),Предмет_договора),)","v":0},{"$f":"IFERROR(LOOKUP(,-1/ISERROR(MATCH(Предмет_договора,I$1:I80,))/(КОСГУ=I$1),Предмет_договора),)","v":0},{"$f":"IFERROR(LOOKUP(,-1/ISERROR(MATCH(Предмет_договора,J$1:J80,))/(КОСГУ=J$1),Предмет_договора),)","v":0}]
[null,{"$f":"IFERROR(LOOKUP(,-1/ISERROR(MATCH(Предмет_договора,B$1:B81,))/(КОСГУ=B$1),Предмет_договора),)","v":0},{"$f":"IFERROR(LOOKUP(,-1/ISERROR(MATCH(Предмет_договора,C$1:C81,))/(КОСГУ=C$1),Предмет_договора),)","v":0},{"$f":"IFERROR(LOOKUP(,-1/ISERROR(MATCH(Предмет_договора,D$1:D81,))/(КОСГУ=D$1),Предмет_договора),)","v":0},{"$f":"IFERROR(LOOKUP(,-1/ISERROR(MATCH(Предмет_договора,E$1:E81,))/(КОСГУ=E$1),Предмет_договора),)","v":0},{"$f":"IFERROR(LOOKUP(,-1/ISERROR(MATCH(Предмет_договора,F$1:F81,))/(КОСГУ=F$1),Предмет_договора),)","v":0},{"$f":"IFERROR(LOOKUP(,-1/ISERROR(MATCH(Предмет_договора,G$1:G81,))/(КОСГУ=G$1),Предмет_договора),)","v":0},{"$f":"IFERROR(LOOKUP(,-1/ISERROR(MATCH(Предмет_договора,H$1:H81,))/(КОСГУ=H$1),Предмет_договора),)","v":0},{"$f":"IFERROR(LOOKUP(,-1/ISERROR(MATCH(Предмет_договора,I$1:I81,))/(КОСГУ=I$1),Предмет_договора),)","v":0},{"$f":"IFERROR(LOOKUP(,-1/ISERROR(MATCH(Предмет_договора,J$1:J81,))/(КОСГУ=J$1),Предмет_договора),)","v":0}]
[null,{"$f":"IFERROR(LOOKUP(,-1/ISERROR(MATCH(Предмет_договора,B$1:B82,))/(КОСГУ=B$1),Предмет_договора),)","v":0},{"$f":"IFERROR(LOOKUP(,-1/ISERROR(MATCH(Предмет_договора,C$1:C82,))/(КОСГУ=C$1),Предмет_договора),)","v":0},{"$f":"IFERROR(LOOKUP(,-1/ISERROR(MATCH(Предмет_договора,D$1:D82,))/(КОСГУ=D$1),Предмет_договора),)","v":0},{"$f":"IFERROR(LOOKUP(,-1/ISERROR(MATCH(Предмет_договора,E$1:E82,))/(КОСГУ=E$1),Предмет_договора),)","v":0},{"$f":"IFERROR(LOOKUP(,-1/ISERROR(MATCH(Предмет_договора,F$1:F82,))/(КОСГУ=F$1),Предмет_договора),)","v":0},{"$f":"IFERROR(LOOKUP(,-1/ISERROR(MATCH(Предмет_договора,G$1:G82,))/(КОСГУ=G$1),Предмет_договора),)","v":0},{"$f":"IFERROR(LOOKUP(,-1/ISERROR(MATCH(Предмет_договора,H$1:H82,))/(КОСГУ=H$1),Предмет_договора),)","v":0},{"$f":"IFERROR(LOOKUP(,-1/ISERROR(MATCH(Предмет_договора,I$1:I82,))/(КОСГУ=I$1),Предмет_договора),)","v":0},{"$f":"IFERROR(LOOKUP(,-1/ISERROR(MATCH(Предмет_договора,J$1:J82,))/(КОСГУ=J$1),Предмет_договора),)","v":0}]
[null,{"$f":"IFERROR(LOOKUP(,-1/ISERROR(MATCH(Предмет_договора,B$1:B83,))/(КОСГУ=B$1),Предмет_договора),)","v":0},{"$f":"IFERROR(LOOKUP(,-1/ISERROR(MATCH(Предмет_договора,C$1:C83,))/(КОСГУ=C$1),Предмет_договора),)","v":0},{"$f":"IFERROR(LOOKUP(,-1/ISERROR(MATCH(Предмет_договора,D$1:D83,))/(КОСГУ=D$1),Предмет_договора),)","v":0},{"$f":"IFERROR(LOOKUP(,-1/ISERROR(MATCH(Предмет_договора,E$1:E83,))/(КОСГУ=E$1),Предмет_договора),)","v":0},{"$f":"IFERROR(LOOKUP(,-1/ISERROR(MATCH(Предмет_договора,F$1:F83,))/(КОСГУ=F$1),Предмет_договора),)","v":0},{"$f":"IFERROR(LOOKUP(,-1/ISERROR(MATCH(Предмет_договора,G$1:G83,))/(КОСГУ=G$1),Предмет_договора),)","v":0},{"$f":"IFERROR(LOOKUP(,-1/ISERROR(MATCH(Предмет_договора,H$1:H83,))/(КОСГУ=H$1),Предмет_договора),)","v":0},{"$f":"IFERROR(LOOKUP(,-1/ISERROR(MATCH(Предмет_договора,I$1:I83,))/(КОСГУ=I$1),Предмет_договора),)","v":0},{"$f":"IFERROR(LOOKUP(,-1/ISERROR(MATCH(Предмет_договора,J$1:J83,))/(КОСГУ=J$1),Предмет_договора),)","v":0}]
[null,{"$f":"IFERROR(LOOKUP(,-1/ISERROR(MATCH(Предмет_договора,B$1:B84,))/(КОСГУ=B$1),Предмет_договора),)","v":0},{"$f":"IFERROR(LOOKUP(,-1/ISERROR(MATCH(Предмет_договора,C$1:C84,))/(КОСГУ=C$1),Предмет_договора),)","v":0},{"$f":"IFERROR(LOOKUP(,-1/ISERROR(MATCH(Предмет_договора,D$1:D84,))/(КОСГУ=D$1),Предмет_договора),)","v":0},{"$f":"IFERROR(LOOKUP(,-1/ISERROR(MATCH(Предмет_договора,E$1:E84,))/(КОСГУ=E$1),Предмет_договора),)","v":0},{"$f":"IFERROR(LOOKUP(,-1/ISERROR(MATCH(Предмет_договора,F$1:F84,))/(КОСГУ=F$1),Предмет_договора),)","v":0},{"$f":"IFERROR(LOOKUP(,-1/ISERROR(MATCH(Предмет_договора,G$1:G84,))/(КОСГУ=G$1),Предмет_договора),)","v":0},{"$f":"IFERROR(LOOKUP(,-1/ISERROR(MATCH(Предмет_договора,H$1:H84,))/(КОСГУ=H$1),Предмет_договора),)","v":0},{"$f":"IFERROR(LOOKUP(,-1/ISERROR(MATCH(Предмет_договора,I$1:I84,))/(КОСГУ=I$1),Предмет_договора),)","v":0},{"$f":"IFERROR(LOOKUP(,-1/ISERROR(MATCH(Предмет_договора,J$1:J84,))/(КОСГУ=J$1),Предмет_договора),)","v":0}]
[null,{"$f":"IFERROR(LOOKUP(,-1/ISERROR(MATCH(Предмет_договора,B$1:B85,))/(КОСГУ=B$1),Предмет_договора),)","v":0},{"$f":"IFERROR(LOOKUP(,-1/ISERROR(MATCH(Предмет_договора,C$1:C85,))/(КОСГУ=C$1),Предмет_договора),)","v":0},{"$f":"IFERROR(LOOKUP(,-1/ISERROR(MATCH(Предмет_договора,D$1:D85,))/(КОСГУ=D$1),Предмет_договора),)","v":0},{"$f":"IFERROR(LOOKUP(,-1/ISERROR(MATCH(Предмет_договора,E$1:E85,))/(КОСГУ=E$1),Предмет_договора),)","v":0},{"$f":"IFERROR(LOOKUP(,-1/ISERROR(MATCH(Предмет_договора,F$1:F85,))/(КОСГУ=F$1),Предмет_договора),)","v":0},{"$f":"IFERROR(LOOKUP(,-1/ISERROR(MATCH(Предмет_договора,G$1:G85,))/(КОСГУ=G$1),Предмет_договора),)","v":0},{"$f":"IFERROR(LOOKUP(,-1/ISERROR(MATCH(Предмет_договора,H$1:H85,))/(КОСГУ=H$1),Предмет_договора),)","v":0},{"$f":"IFERROR(LOOKUP(,-1/ISERROR(MATCH(Предмет_договора,I$1:I85,))/(КОСГУ=I$1),Предмет_договора),)","v":0},{"$f":"IFERROR(LOOKUP(,-1/ISERROR(MATCH(Предмет_договора,J$1:J85,))/(КОСГУ=J$1),Предмет_договора),)","v":0}]
[null,{"$f":"IFERROR(LOOKUP(,-1/ISERROR(MATCH(Предмет_договора,B$1:B86,))/(КОСГУ=B$1),Предмет_договора),)","v":0},{"$f":"IFERROR(LOOKUP(,-1/ISERROR(MATCH(Предмет_договора,C$1:C86,))/(КОСГУ=C$1),Предмет_договора),)","v":0},{"$f":"IFERROR(LOOKUP(,-1/ISERROR(MATCH(Предмет_договора,D$1:D86,))/(КОСГУ=D$1),Предмет_договора),)","v":0},{"$f":"IFERROR(LOOKUP(,-1/ISERROR(MATCH(Предмет_договора,E$1:E86,))/(КОСГУ=E$1),Предмет_договора),)","v":0},{"$f":"IFERROR(LOOKUP(,-1/ISERROR(MATCH(Предмет_договора,F$1:F86,))/(КОСГУ=F$1),Предмет_договора),)","v":0},{"$f":"IFERROR(LOOKUP(,-1/ISERROR(MATCH(Предмет_договора,G$1:G86,))/(КОСГУ=G$1),Предмет_договора),)","v":0},{"$f":"IFERROR(LOOKUP(,-1/ISERROR(MATCH(Предмет_договора,H$1:H86,))/(КОСГУ=H$1),Предмет_договора),)","v":0},{"$f":"IFERROR(LOOKUP(,-1/ISERROR(MATCH(Предмет_договора,I$1:I86,))/(КОСГУ=I$1),Предмет_договора),)","v":0},{"$f":"IFERROR(LOOKUP(,-1/ISERROR(MATCH(Предмет_договора,J$1:J86,))/(КОСГУ=J$1),Предмет_договора),)","v":0}]
[null,{"$f":"IFERROR(LOOKUP(,-1/ISERROR(MATCH(Предмет_договора,B$1:B87,))/(КОСГУ=B$1),Предмет_договора),)","v":0},{"$f":"IFERROR(LOOKUP(,-1/ISERROR(MATCH(Предмет_договора,C$1:C87,))/(КОСГУ=C$1),Предмет_договора),)","v":0},{"$f":"IFERROR(LOOKUP(,-1/ISERROR(MATCH(Предмет_договора,D$1:D87,))/(КОСГУ=D$1),Предмет_договора),)","v":0},{"$f":"IFERROR(LOOKUP(,-1/ISERROR(MATCH(Предмет_договора,E$1:E87,))/(КОСГУ=E$1),Предмет_договора),)","v":0},{"$f":"IFERROR(LOOKUP(,-1/ISERROR(MATCH(Предмет_договора,F$1:F87,))/(КОСГУ=F$1),Предмет_договора),)","v":0},{"$f":"IFERROR(LOOKUP(,-1/ISERROR(MATCH(Предмет_договора,G$1:G87,))/(КОСГУ=G$1),Предмет_договора),)","v":0},{"$f":"IFERROR(LOOKUP(,-1/ISERROR(MATCH(Предмет_договора,H$1:H87,))/(КОСГУ=H$1),Предмет_договора),)","v":0},{"$f":"IFERROR(LOOKUP(,-1/ISERROR(MATCH(Предмет_договора,I$1:I87,))/(КОСГУ=I$1),Предмет_договора),)","v":0},{"$f":"IFERROR(LOOKUP(,-1/ISERROR(MATCH(Предмет_договора,J$1:J87,))/(КОСГУ=J$1),Предмет_договора),)","v":0}]
[null,{"$f":"IFERROR(LOOKUP(,-1/ISERROR(MATCH(Предмет_договора,B$1:B88,))/(КОСГУ=B$1),Предмет_договора),)","v":0},{"$f":"IFERROR(LOOKUP(,-1/ISERROR(MATCH(Предмет_договора,C$1:C88,))/(КОСГУ=C$1),Предмет_договора),)","v":0},{"$f":"IFERROR(LOOKUP(,-1/ISERROR(MATCH(Предмет_договора,D$1:D88,))/(КОСГУ=D$1),Предмет_договора),)","v":0},{"$f":"IFERROR(LOOKUP(,-1/ISERROR(MATCH(Предмет_договора,E$1:E88,))/(КОСГУ=E$1),Предмет_договора),)","v":0},{"$f":"IFERROR(LOOKUP(,-1/ISERROR(MATCH(Предмет_договора,F$1:F88,))/(КОСГУ=F$1),Предмет_договора),)","v":0},{"$f":"IFERROR(LOOKUP(,-1/ISERROR(MATCH(Предмет_договора,G$1:G88,))/(КОСГУ=G$1),Предмет_договора),)","v":0},{"$f":"IFERROR(LOOKUP(,-1/ISERROR(MATCH(Предмет_договора,H$1:H88,))/(КОСГУ=H$1),Предмет_договора),)","v":0},{"$f":"IFERROR(LOOKUP(,-1/ISERROR(MATCH(Предмет_договора,I$1:I88,))/(КОСГУ=I$1),Предмет_договора),)","v":0},{"$f":"IFERROR(LOOKUP(,-1/ISERROR(MATCH(Предмет_договора,J$1:J88,))/(КОСГУ=J$1),Предмет_договора),)","v":0}]
[null,{"$f":"IFERROR(LOOKUP(,-1/ISERROR(MATCH(Предмет_договора,B$1:B89,))/(КОСГУ=B$1),Предмет_договора),)","v":0},{"$f":"IFERROR(LOOKUP(,-1/ISERROR(MATCH(Предмет_договора,C$1:C89,))/(КОСГУ=C$1),Предмет_договора),)","v":0},{"$f":"IFERROR(LOOKUP(,-1/ISERROR(MATCH(Предмет_договора,D$1:D89,))/(КОСГУ=D$1),Предмет_договора),)","v":0},{"$f":"IFERROR(LOOKUP(,-1/ISERROR(MATCH(Предмет_договора,E$1:E89,))/(КОСГУ=E$1),Предмет_договора),)","v":0},{"$f":"IFERROR(LOOKUP(,-1/ISERROR(MATCH(Предмет_договора,F$1:F89,))/(КОСГУ=F$1),Предмет_договора),)","v":0},{"$f":"IFERROR(LOOKUP(,-1/ISERROR(MATCH(Предмет_договора,G$1:G89,))/(КОСГУ=G$1),Предмет_договора),)","v":0},{"$f":"IFERROR(LOOKUP(,-1/ISERROR(MATCH(Предмет_договора,H$1:H89,))/(КОСГУ=H$1),Предмет_договора),)","v":0},{"$f":"IFERROR(LOOKUP(,-1/ISERROR(MATCH(Предмет_договора,I$1:I89,))/(КОСГУ=I$1),Предмет_договора),)","v":0},{"$f":"IFERROR(LOOKUP(,-1/ISERROR(MATCH(Предмет_договора,J$1:J89,))/(КОСГУ=J$1),Предмет_договора),)","v":0}]

{"sheet":"Дополняемый блок","index":2,"n_rows":112,"n_cols":9,"rows_kept":112,"cut":false,"hidden":true,"merged":[]}
["Статья","Предмет",null,null,"Обязательно отсортировать по столбцам А и В и убрать дубликаты"]
[221,"телефонная связь"]
[221,"прочие услуги связи",null,null,{"$f":"TODAY()","v":"2015-08-14"},"МО, Рузский р-н, п. Сельхозтехника","Академический институт социально-политических и этнодемографических исследований",null,"бюджет"]
[221,"мобильная связь",null,null,null,"1-й Балтийский пер., д. 6/21, к. 2","Антикризисное управление",null,"внебюджет"]
[221,"интернет",null,null,null,"ул. Беговая, д.14А","Аппарат Ректората"]
[222,"доставка",null,null,null,"ул. В.Пика, вл. 4","Единый аналитический центр сводной отчетности и статистики",null,"ежемесячно"]
[222,"билеты",null,null,null,"ул. Инженерная, д. 4","Кафедра ЮНЕСКО",null,"разово"]
[222,"автотранспортное обслуживание",null,null,null,"ул. Лосиноостровская, д. 24","Лицей одаренных российских детей",null,"2 этапа"]
[223,"электроэнергия",null,null,null,"ул. Лосиноостровская, д. 31","Научная библиотека",null,"другое"]
[223,"холодное водоснабжение",null,null,null,"ул. Лосиноостровская, д. 40","Научно-исследовательский институт перспективных направлений и технологий",null,0.1]
[223,"транспортировка газа",null,null,null,"ул. Лосиноостровская, д. 30А","Научно-педагогический центр \"Семья, гендер, демография\"",null,0.2]
[223,"теплоэнергия",null,null,null,"ул. Плещеева, д. 15, к. 1","Отдел научно-технической информации",null,0.3]
[223,"прием сточных вод",null,null,null,"ул. Профсоюзная, д. 31, стр. 1","Поликлиника РГСУ",null,0.4]
[223,"поставка газа",null,null,null,"ул. Сталеваров, д. 30","Правовое управление",null,0.5]
[223,"горячее водоснабжение",null,null,null,null,"Пресс-служба",null,0.6]
[224,"временное пользование недвижимым  имуществом",null,null,null,null,"Проектное управление",null,0.7]
[224,"временное пользование движимым имуществом",null,null,null,"ул. Стромынка, д. 18","Ректорат",null,0.8]
[225,"уборка помещений, территории",null,null,null,"МО, Пушкинский р-н, п. Доброе","Санаторий-профилакторий для студентов и сотрудников",null,0.9]
[225,"текущий ремонт",null,null,null,"МО, Рузский р-н, Комлевский с/о, п/х \"Бабаево\"","Секретариат Ученого совета",null,1]
[225,"стирка белья",null,null,null,null,"Социально-гуманитарный факультет"]
[225,"ремонт сантехнических помещений",null,null,null,null,"Спортивный клуб РГСУ"]
[225,"ремонт офисных помещений",null,null,null,null,"Управление безопасности"]
[225,"ремонт и то транспортных средств",null,null,null,null,"Управление делами и кадров"]
[225,"ремонт и то средств охраны",null,null,null,null,"Управление имущественного комплекса и социально-бытового обеспечения"]
[225,"ремонт и то пожарной сигнализации",null,null,null,null,"Управление инновационных проектов и маркетинга"]
[225,"ремонт и то оргтехники",null,null,null,null,"Управление информационных систем и технологий"]
[225,"ремонт и то оборудования",null,null,null,null,"Управление контрактной работы (контрактная служба)"]
[225,"ремонт и то медицинской техники",null,null,null,null,"Управление международного сотрудничества"]
[225,"ремонт и то лифтов",null,null,null,null,"Управление молодежной политики"]
[225,"ремонт и то климатической техники",null,null,null,null,"Управление организации работы Приемной и Аттестационной комиссий"]
[225,"ремонт и то инженерных сетей",null,null,null,null,"Управление по работе с региональной и международной сетью"]
[225,"ремонт зданий и сооружений",null,null,null,null,"Управление сопровождения обучающихся"]
[225,"прочие работы по содержанию имущества",null,null,null,null,"Учебно-методическое объединение"]
[225,"противопожарные мероприятия",null,null,null,null,"Учебно-методическое управление"]
[225,"проведение бактериолог исследований воздуха и иных нефинансовых активов",null,null,null,null,"Учебно-практический центр социальной адаптации трудовых мигрантов и противодействия этническому и религиозному экстремизму"]
[225,"оценка технического состояния",null,null,null,null,"Учебно-реабилитационный молодежный центр \"Алмаз\""]
[225,"монтажные работы",null,null,null,null,"Факультет дистанционного обучения"]
[225,"капремонт",null,null,null,null,"Факультет довузовского образования"]
[225,"заправка картриджей",null,null,null,null,"Факультет дополнительного профессионального образования"]
[225,"дезинфекция, дезинсекция, дератизация, демеркуризация",null,null,null,null,"Факультет иностранных языков"]
[225,"гос поверка, паспортизация средств измерений",null,null,null,null,"Факультет информационных технологий и техносферной безопасности"]
[225,"вывоз ТБО",null,null,null,null,"Факультет искусств и социокультурной деятельности"]
[225,"вывоз медотходов",null,null,null,null,"Факультет коммуникативного менеджмента"]
[226,"юридические услуги",null,null,null,null,"Факультет подготовки научных и научно-педагогических кадров"]
[226,"электромонтажные работы",null,null,null,null,"Факультет психологии, социальной медицины и адаптационно-реабилитационных технологий"]
[226,"услуги по сдаче отчетности",null,null,null,null,"Факультет социального страхования, экономики и социологии труда"]
[226,"технический учет и инвентаризация",null,null,null,null,"Факультет социального управления и социологии"]
[226,"сублецензионное вознаграждение",null,null,null,null,"Факультет социальной работы, педагогики и ювенологии"]
[226,"страхование",null,null,null,null,"Факультет юриспруденции и  ювенальной юстиции"]
[226,"сертификация",null,null,null,null,"Финансовое управление"]
[226,"реклама",null,null,null,null,"Хозяйственное управление"]
[226,"разработка проектной документации",null,null,null,null,"Центр мониторинга и сопровождения научных грантов, конкурсов и программ"]
[226,"прочие услуги"]
[226,"полиграфические услуги"]
[226,"подписка"]
[226,"погрузочно-разгрузочные, такелажные работы"]
[226,"повышение квалификации, переаттестация"]
[226,"оценочные услуги"]
[226,"охрана"]
[226,"оргвзнос"]
[226,"организация питания"]
[226,"образовательные услуги, семинары"]
[226,"неисключительные права на ПО"]
[226,"монтажные работы"]
[226,"лабораторные исследования"]
[226,"курьерская доставка"]
[226,"конкурсы, выставки, конференции для студентов и работников"]
[226,"компьютерный сервис"]
[226,"командирование, стажировки"]
[226,"информационные услуги"]
[226,"инкассация"]
[226,"демонтажные работы"]
[226,"геодезические работы"]
[226,"гардеробное обслуживание"]
[226,"бланки строгой отчетности"]
[226,"автоматическая пожарная сигнализация, ЧС"]
[290,"цветы"]
[290,"услуги по составлению букетов"]
[290,"подарочная и сувенирная продукция"]
[290,"логотипированная продукция"]
[290,"взносы"]
[310,"учебное оборудование"]
[310,"спортивное оборудование"]
[310,"прочие средства"]
[310,"оборудование для типографии"]
[310,"оборудование для ремонта"]
[310,"медицинское оборудование"]
[310,"мебель"]
[310,"кондиционеры, холодильники"]
[310,"компьютерная техника, периферия"]
[310,"бытовое оборудование"]
[310,"акустическое оборудование"]
[340,"электротехнические товары"]
[340,"хозтовары"]
[340,"топливо"]
[340,"товары для оргмероприятий"]
[340,"спецодежда"]
[340,"расходные материалы для типографии"]
[340,"расходные материалы для ремонта"]
[340,"расходные материалы для акустического оборудования"]
[340,"расходники для ПК, оргтехники"]
[340,"прочие мат. запасы"]
[340,"продукты питания"]
[340,"питьевая вода"]
[340,"мягкий инвентарь"]
[340,"медицинские товары"]
[340,"канцелярские товары"]
[340,"зачетки, студ.билеты"]
[340,"запчасти для прочего оборудования"]
[340,"бумага"]
[340,"бланочная продукция"]
[340,"автозапчасти"]

{"sheet":"История согласования","index":3,"n_rows":9,"n_cols":58,"rows_kept":9,"cut":false,"hidden":false,"merged":[[4,0,4,2],[4,3,4,7],[4,48,4,52],[4,53,4,57],[4,8,4,12],[4,13,4,17],[4,18,4,22],[4,23,4,27],[4,28,4,32],[4,33,4,37],[4,38,4,42],[4,43,4,47]]}
[]
[]
[]
[]
["История согласования заявки",null,null,{"$f":"\"Этап \"&(TRUNC(COLUMN(A1)/5)+1)","v":"Этап 1"},null,null,null,null,{"$f":"\"Этап \"&(TRUNC(COLUMN(E1)/5)+1)","v":"Этап 2"},null,null,null,null,{"$f":"\"Этап \"&(TRUNC(COLUMN(J1)/5)+1)","v":"Этап 3"},null,null,null,null,{"$f":"\"Этап \"&(TRUNC(COLUMN(O1)/5)+1)","v":"Этап 4"},null,null,null,null,{"$f":"\"Этап \"&(TRUNC(COLUMN(T1)/5)+1)","v":"Этап 5"},null,null,null,null,{"$f":"\"Этап \"&(TRUNC(COLUMN(Y1)/5)+1)","v":"Этап 6"},null,null,null,null,{"$f":"\"Этап \"&(TRUNC(COLUMN(AD1)/5)+1)","v":"Этап 7"},null,null,null,null,{"$f":"\"Этап \"&(TRUNC(COLUMN(AI1)/5)+1)","v":"Этап 8"},null,null,null,null,{"$f":"\"Этап \"&(TRUNC(COLUMN(AN1)/5)+1)","v":"Этап 9"},null,null,null,null,{"$f":"\"Этап \"&(TRUNC(COLUMN(AS1)/5)+1)","v":"Этап 10"},null,null,null,null,{"$f":"\"Этап \"&(TRUNC(COLUMN(AX1)/5)+1)","v":"Этап 11"}]
["Дата поступления заявки","Полное наименование заявки","Сумма заявки, рублей","Тип документа","Наименование согласующего органа","Дата передачи","Дата возврата","Решение","Тип документа2","Наименование согласующего органа2","Дата передачи2","Дата возврата2","Решение2","Тип документа3","Наименование согласующего органа3","Дата передачи3","Дата возврата3","Решение3","Тип документа4","Наименование согласующего органа4","Дата передачи4","Дата возврата4","Решение4","Тип документа5","Наименование согласующего органа5","Дата передачи5","Дата возврата5","Решение5","Тип документа6","Наименование согласующего органа6","Дата передачи6","Дата возврата6","Решение6","Тип документа7","Наименование согласующего органа7","Дата передачи7","Дата возврата7","Решение7","Тип документа8","Наименование согласующего органа8","Дата возврата8","Дата передачи82","Решение8","Тип документа9","Наименование согласующего органа9","Дата передачи9","Дата возврата9","Решение9","Тип документа10","Наименование согласующего органа10","Дата передачи10","Дата возврата10","Решение10","Тип документа11","Наименование согласующего органа11","Дата передачи11","Дата возврата11","Решение11"]
[{"$f":"IF(ISBLANK(Таблица!B7),\"\",Таблица!B7)","v":"2015-01-15"},{"$f":"IF(ISBLANK(Таблица!C7),\"\",Таблица!C7)","v":"Стирка прямого белья в Санатории-профилактории"},{"$f":"IF(ISBLANK(Таблица!D7),\"\",Таблица!D7)","v":10000},"Заявка","Рабочая комиссия","2015-01-20","2015-01-21","утвержд.","Заявка","Ходырев","2015-01-22","2015-01-23","согласов.","Заявка","Кучина","2015-01-23","2015-01-24","согласов."]
[{"$f":"IF(ISBLANK(Таблица!B8),\"\",Таблица!B8)","v":"2015-01-15"},{"$f":"IF(ISBLANK(Таблица!C8),\"\",Таблица!C8)","v":"Услуги по экспресс-доставке отправлений специальной связи, включая прием, обработку, доставку (вручение) экспресс-отправлений."},{"$f":"IF(ISBLANK(Таблица!D8),\"\",Таблица!D8)","v":50000},"Заявка","Рабочая комиссия","2015-01-20","2015-01-21","утвержд.","Заявка","Ходырев","2015-01-22","2015-01-23","согласов.","Заявка","Кучина","2015-01-23","2015-01-24","согласов."]
[{"$f":"IF(ISBLANK(Таблица!B9),\"\",Таблица!B9)","v":"2015-01-16"},{"$f":"IF(ISBLANK(Таблица!C9),\"\",Таблица!C9)","v":"Товары для обеспечения РГСУ: бумага формата А4"},{"$f":"IF(ISBLANK(Таблица!D9),\"\",Таблица!D9)","v":100000},"Заявка","Рабочая комиссия","2015-01-20"]

{"sheet":"Лист1","index":4,"n_rows":13,"n_cols":2,"rows_kept":13,"cut":false,"hidden":true,"merged":[[0,0,5,0],[6,0,10,0]]}
["ПРИ НАЖАТИИ НА ЯЧЕЙКУ R7 (гиперссылка или нажатие 2 раза) вылетает окошко с журналом событий","21.01.2015 Заявка утвержд. Рабочая комиссия"]
[null,"23.01.2015 Заявка согласов. Ходырев"]
[null,"24.01.2015 Заявка согласов. Кучина"]
[null,"26.01.2015 Проект договора согласов. Желтова"]
[null,"27.01.2015 Проект договора согласов. Правовое Управление"]
[null,"30.01.2015 Договор заключен Починок"]
["ТО ЖЕ САМОЕ ДЛЯ ЯЧЕЙКИ R8"]
[null,"21.01.2015 Заявка утвержд. Рабочая комиссия"]
[null,"23.01.2015 Заявка согласов. Ходырев"]
[null,"24.01.2015 Заявка согласов. Кучина"]
[null,"26.01.2015 Проект договора возвращен на доработку Желтова"]
[]
["Ячейка R9","20.01.2015 Заявка направл. Рабочая комиссия"]